Workbook

Sheet Topics
A1: Topics | B1: Office Video # | C1: Excel Basics Video #
A2: IF Function | B2: 45 | C2: 27
A3: VLOOKUP Function | B3: 46 | C3: 28

Sheet 1 of 2 things in cell
A1: Employee | B1: Sales | C1: Bonus? TRUE or FALSE? | E1: Contact reads: "If employee has sales of $20,000 or
A2: Rod Barbaria | B2: 20382 | E2: more they get a bonus
A3: Elinore Cromedy | B3: 19504
A4: Twanda Spruce | B4: 21579
A5: Darius Raffety | B5: 12117
A6: Frida Vickerson | B6: 26081
A8: Employee | B8: Sales | C8: Bonus? 0 or $750 | E8: Contact reads: "If employee has sales of $20,000 or
A9: Rod Barbaria | B9: 20382 | E9: more they get a bonus of $750
A10: Elinore Cromedy | B10: 19504
A11: Twanda Spruce | B11: 21579
A12: Darius Raffety | B12: 12117
A13: Frida Vickerson | B13: 26081
A17: Product | B17: Sales | C17: Bonus Commission? 5% or 1.5% | E17: Contact Reads if you have sales of $30,000 or more,
A18: Eagle Flyer | B18: 15000 | E18: you earn a 5% bonus, otehrwise you get a 1.5%
A19: Quad | B19: 25000 | E19: bonus
A20: Quad | B20: 65000
A21: Carlota | B21: 15896
A22: Bellen | B22: 35240
A23: Bellen | B23: 24990
A24: Eagle Flyer | B24: 54000

Sheet IF(1)
A1: Office 2013 Class #44, Excel Basics 26: | I1: Comparative Operators
A2: IF Function Made Easy! | D2: IF for putting 1 of 2 Things is a Cell | I2: > Greater Than
I3: >= Greater Than Or Equal To
D4: Debit Numbers | E4: Credit Numbers | I4: < Less Than
A5: Bonus Amount | B5: 500 | D5: 58 | E5: 58 | I5: <= Less Than Or Equal To
A6: Bonus Hurdle | B6: 50000 | D6: 30 | E6: 30 | I6: = Equal To
D7: 43 | E7: 43 | I7: <> Not Equal To
A8: Your Sales | B8: 65000 | D8: 21.001 | E8: 21
A9: Do You Get Bonus?
A10: Your Bonus | G10: In Balance?
D11: =SUM(D5:D10) -> 152.001 | E11: =SUM(E5:E10) -> 152
A13: Click on this link to see more about the IF function:
A14: Excel Magic Trick 452: IF Function Formula 16 Examples
A15: http://www.youtube.com/watch?v=nzph9tXO2d0

Sheet IF(1an)
A1: Office 2013 Class #44, Excel Basics 26: | I1: Comparative Operators
A2: IF Function Made Easy! | D2: IF for putting 1 of 2 Things is a Cell | I2: > Greater Than
I3: >= Greater Than Or Equal To
D4: Debit Numbers | E4: Credit Numbers | I4: < Less Than
A5: Bonus Amount | B5: 500 | D5: 58 | E5: 58 | I5: <= Less Than Or Equal To
A6: Bonus Hurdle | B6: 50000 | D6: 30 | E6: 30 | I6: = Equal To
D7: 43 | E7: 43 | I7: <> Not Equal To
A8: Your Sales | B8: 100000 | D8: 21.001 | E8: 21
A9: Do You Get Bonus? | B9: =B8>=B6 -> TRUE
A10: Your Bonus | B10: =IF(B8>=B6,B5,0) -> 500 | G10: In Balance?
D11: =SUM(D5:D10) -> 152.001 | E11: =SUM(E5:E10) -> 152 | G11: =D11=E11 -> FALSE
G12: =IF(D11=E11,"In Balance","Not In Balance") -> Not In Balance
A13: Click on this link to see more about the IF function:
A14: Excel Magic Trick 452: IF Function Formula 16 Examples
A15: http://www.youtube.com/watch?v=nzph9tXO2d0

Sheet IF(2)
C1: Logical Formula or logical_test | D1: IF used to put 1 of 2 words in cell | E1: IF used to put 1 of 2 numbers in cell
A2: Employee | B2: Sales | C2: Bonus: TRUE or FALSE | D2: Bonus: "Yes" or "No" | E2: Bonus Amount
A3: Rod Barbaria | B3: 20382
A4: Elinore Cromedy | B4: 19504
A5: Twanda Spruce | B5: 21579
A6: Darius Raffety | B6: 12117
A7: Frida Vickerson | B7: 26081
A9: Bonus Hurdle | B9: 20000
A10: Bonus Amount If Hurdle Equaled or Passed | B10: 750
A12: Click on this link to see more about the IF function:
A13: Excel Magic Trick 452: IF Function Formula 16 Examples
A14: http://www.youtube.com/watch?v=nzph9tXO2d0

Sheet IF(2an)
C1: Logical Formula or logical_test | D1: IF used to put 1 of 2 words in cell | E1: IF used to put 1 of 2 numbers in cell
A2: Employee | B2: Sales | C2: Bonus: TRUE or FALSE | D2: Bonus: "Yes" or "No" | E2: Bonus Amount
A3: Rod Barbaria | B3: 20382 | C3: =B3>=$B$9 -> TRUE | D3: =IF(B3>=$B$9,"Yes","No") -> Yes | E3: =IF(B3>=$B$9,$B$10,0) -> 750
A4: Elinore Cromedy | B4: 19504 | C4: =B4>=$B$9 -> FALSE | D4: =IF(B4>=$B$9,"Yes","No") -> No | E4: =IF(B4>=$B$9,$B$10,0) -> 0
A5: Twanda Spruce | B5: 21579 | C5: TRUE | D5: Yes | E5: 750
A6: Darius Raffety | B6: 12117 | C6: FALSE | D6: No | E6: 0
A7: Frida Vickerson | B7: 26081 | C7: TRUE | D7: Yes | E7: 750
A9: Bonus Hurdle | B9: 20000
A10: Bonus Amount If Hurdle Equaled or Passed | B10: 750
A12: Click on this link to see more about the IF function:
A13: Excel Magic Trick 452: IF Function Formula 16 Examples
A14: http://www.youtube.com/watch?v=nzph9tXO2d0

Sheet IF(3)
A1: Product | B1: Sales | C1: ="Bonus Commission? "&TEXT($G$2,"0.00%")&" or "&TEXT($H$2,"0.00%") -> Bonus Commission? 1.75% or 5.25% | D1: $ Commission | F1: Hurdle | G1: Commission Rate Low | H1: Commission Rate High
A2: Eagle Flyer | B2: 15000 | F2: 30000 | G2: 0.0175 | H2: 0.0525
A3: Quad | B3: 25000
A4: Quad | B4: 65000
A5: Carlota | B5: 15896
A6: Bellen | B6: 35240
A7: Bellen | B7: 24990
A8: Eagle Flyer | B8: 54000
A10: Product | B10: Sales | C10: $ Commission | E10: Hurdle | F10: Commission Rate Low | G10: Commission Rate High
A11: Eagle Flyer | B11: 15000 | E11: =F2 -> 30000 | F11: 0.0175 | G11: 0.0525
A12: Quad | B12: 25000
A13: Quad | B13: 65000
A14: Carlota | B14: 15896
A15: Bellen | B15: 35240
A16: Bellen | B16: 24990
A17: Eagle Flyer | B17: 54000

Sheet IF(3an)
A1: Product | B1: Sales | C1: ="Bonus Commission? "&TEXT($G$2,"0.00%")&" or "&TEXT($H$2,"0.00%") -> Bonus Commission? 1.75% or 5.25% | D1: $ Commission | F1: Hurdle | G1: Commission Rate Low | H1: Commission Rate High
A2: Eagle Flyer | B2: 15000 | C2: =IF(B2>=$F$2,$H$2,$G$2) -> 0.0175 | D2: =ROUND(B2*C2,2) -> 262.5 | F2: 30000 | G2: 0.0175 | H2: 0.0525
A3: Quad | B3: 25000 | C3: =IF(B3>=$F$2,$H$2,$G$2) -> 0.0175 | D3: =ROUND(B3*C3,2) -> 437.5
A4: Quad | B4: 65000 | C4: 0.0525 | D4: 3412.5
A5: Carlota | B5: 15896 | C5: 0.0175 | D5: 278.18
A6: Bellen | B6: 35240 | C6: 0.0525 | D6: 1850.1
A7: Bellen | B7: 24990 | C7: 0.0175 | D7: 437.33
A8: Eagle Flyer | B8: 54000 | C8: 0.0525 | D8: 2835
A10: Product | B10: Sales | C10: $ Commission | E10: Hurdle | F10: Commission Rate Low | G10: Commission Rate High
A11: Eagle Flyer | B11: 15000 | C11: =IF(B11>=$F$2,$H$2,$G$2)*B11 -> 262.5 | E11: =F2 -> 30000 | F11: 0.0175 | G11: 0.0525
A12: Quad | B12: 25000 | C12: =IF(B12>=$F$2,$H$2,$G$2)*B12 -> 437.5
A13: Quad | B13: 65000 | C13: 3412.5
A14: Carlota | B14: 15896 | C14: 278.18
A15: Bellen | B15: 35240 | C15: 1850.1
A16: Bellen | B16: 24990 | C16: 437.325
A17: Eagle Flyer | B17: 54000 | C17: 2835

Sheet V(1)
A1: Office 2013 Class #45, Excel Basics 27:
A2: VLOOKUP Function Made Easy (12 Examples)
A4: VLOOKUP retrieves (goes and gets) something from a table and brings it back to the cell
A5: Looking stuff up in tables is one of THE MOST COMMON TASKS. Everyone does it: employee table, commission table, product table,
A6: Lookup tables are EVERYWHERE!!! | H6: tax table, grade table.
A7: Most tables are Vertical: meaning: the thing you are looking up in in the first column of the table and the table is orientated VERTICALLY.
A9: What is "Chukes, Hal" Hire Date?
A10: What is "June, Aler" Address?
A12: Employee | B12: Address | C12: City | D12: State | E12: Zip | F12: E-mail | G12: Phone | H12: Hire Date | I12: Salary
A13: June, Aler | B13: 3557 1st St. | C13: Seattle | D13: WA | E13: 981147 | F13: JNV@yahoo.com | G13: 206-594-4524 | H13: 2005-11-11 | I13: 79284
A14: Acero, Natisha | B14: 6281 173rd St. | C14: Tacoma | D14: WA | E14: 981317 | F14: HDT641@fun.edu | G14: 253-831-6211 | H14: 2008-10-08 | I14: 39555
A15: Bruess, Natisha | B15: 7149 1st Ave. | C15: Seattle | D15: WA | E15: 981335 | F15: YSE222@fun.edu | G15: 206-817-3217 | H15: 2013-03-07 | I15: 38066
A16: Chukes, Hal | B16: 7726 66th Ave. | C16: Tacoma | D16: WA | E16: 981118 | F16: MGF675@fun.edu | G16: 253-522-4565 | H16: 2012-05-17 | I16: 35751
A17: Dahnke, Georgeann | B17: 316 66th Blvd. 151st St. | C17: Kent | D17: WA | E17: 981244 | F17: RWN@fun.edu | G17: 253-716-7665 | H17: 2011-03-28 | I17: 61883
A18: Dillaman, Darius | B18: 965 151st St. | C18: Kent | D18: WA | E18: 981162 | F18: MJG@yahoo.com | G18: 253-585-7294 | H18: 2004-04-10 | I18: 70157
A19: Durtschi, Dane | B19: 7582 4th Lane | C19: Tacoma | D19: WA | E19: 981177 | F19: KVC@gmail.com | G19: 253-860-3024 | H19: 2005-06-16 | I19: 57280
A20: Fila, Bryon | B20: 1654 66th St. | C20: Seattle | D20: WA | E20: 981143 | F20: QKC@gmail.com | G20: 206-801-4535 | H20: 2008-11-15 | I20: 63015
A21: Fukumoto, Marvis | B21: 3653 4th Blvd. | C21: Seattle | D21: WA | E21: 981280 | F21: PKF@yahoo.com | G21: 206-563-8203 | H21: 2008-08-14 | I21: 54005
A22: General, Marlin | B22: 7900 173rd Lane | C22: Kent | D22: WA | E22: 981266 | F22: KFP@yahoo.com | G22: 253-547-6428 | H22: 2009-01-09 | I22: 41404
A24: What is your earned commission if your sales were $6000?
A26: Your Sales | B26: Commission
A27: 0 | B27: 0
A28: 5000 | B28: 200
A29: 12500 | B29: 625
A30: 15000 | B30: 975
A31: 20000 | B31: 1700
A33: What is the price for Quad?
A35: Product | B35: Supplier | C35: Price
A36: Flying Eagle | B36: Channel Craft | C36: 19
A37: V Range | B37: Colordao | C37: 18
A38: Quad | B38: Gel Boom | C38: 40
A39: Bellen | B39: Gel Boom | C39: 25
A40: Carlota | B40: Gel Boom | C40: 24
A42: If your Income is $3000, what is your tax?
A44: Income | B44: Tax
A45: 0 | B45: 0
A46: 1000 | B46: 25
A47: 2000 | B47: 60
A48: 5000 | B48: 120
A49: 10000 | B49: 175
A51: If your % grade is 89.5%, what is your decimal grade?
A53: % Grade | B53: Decimal Grade
A54: 0.94 | B54: 4
A55: 0.9305 | B55: 3.9
A56: 0.921 | B56: 3.8
A57: 0.9115 | B57: 3.7
A58: 0.902 | B58: 3.6
A59: 0.8925 | B59: 3.5
A60: 0.883 | B60: 3.4
A61: 0.8735 | B61: 3.3
A62: 0.864 | B62: 3.2
A63: 0.8545 | B63: 3.1
A64: 0.845 | B64: 3
A65: 0.8355 | B65: 2.9
A66: 0.826 | B66: 2.8
A67: 0.8165 | B67: 2.7
A68: 0.807 | B68: 2.6
A69: 0.7975 | B69: 2.5
A70: 0.788 | B70: 2.4
A71: 0.7785 | B71: 2.3
A72: 0.769 | B72: 2.2
A73: 0.7595 | B73: 2.1
A74: 0.75 | B74: 2
A75: 0.7405 | B75: 1.9
A76: 0.731 | B76: 1.8
A77: 0.7215 | B77: 1.7
A78: 0.712 | B78: 1.6
A79: 0.7025 | B79: 1.5
A80: 0.693 | B80: 1.4
A81: 0.6835 | B81: 1.3
A82: 0.674 | B82: 1.2
A83: 0.6645 | B83: 1.1
A84: 0.655 | B84: 1
A85: 0.6455 | B85: 0.9
A86: 0.636 | B86: 0.8
A87: 0.6265 | B87: 0.7
A88: 0.617 | B88: 0
A89: 0 | B89: 0

Sheet V(1an)
A1: Office 2013 Class #45, Excel Basics 27:
A2: VLOOKUP Function Made Easy (12 Examples)
A4: VLOOKUP retrieves (goes and gets) something from a table and brings it back to the cell
A5: Looking stuff up in tables is one of THE MOST COMMON TASKS. Everyone does it: employee table, commission table, product table,
A6: Lookup tables are EVERYWHERE!!! | H6: tax table, grade table.
A7: Most tables are Vertical: meaning: the thing you are looking up in in the first column of the table and the table is orientated VERTICALLY.
A9: What is "Chukes, Hal" Hire Date?
A10: What is "June, Aler" Address?
A12: Employee | B12: Address | C12: City | D12: State | E12: Zip | F12: E-mail | G12: Phone | H12: Hire Date | I12: Salary
A13: June, Aler | B13: 3557 1st St. | C13: Seattle | D13: WA | E13: 981147 | F13: JNV@yahoo.com | G13: 206-594-4524 | H13: 2005-11-11 | I13: 79284
A14: Acero, Natisha | B14: 6281 173rd St. | C14: Tacoma | D14: WA | E14: 981317 | F14: HDT641@fun.edu | G14: 253-831-6211 | H14: 2008-10-08 | I14: 39555
A15: Bruess, Natisha | B15: 7149 1st Ave. | C15: Seattle | D15: WA | E15: 981335 | F15: YSE222@fun.edu | G15: 206-817-3217 | H15: 2013-03-07 | I15: 38066
A16: Chukes, Hal | B16: 7726 66th Ave. | C16: Tacoma | D16: WA | E16: 981118 | F16: MGF675@fun.edu | G16: 253-522-4565 | H16: 2012-05-17 | I16: 35751
A17: Dahnke, Georgeann | B17: 316 66th Blvd. 151st St. | C17: Kent | D17: WA | E17: 981244 | F17: RWN@fun.edu | G17: 253-716-7665 | H17: 2011-03-28 | I17: 61883
A18: Dillaman, Darius | B18: 965 151st St. | C18: Kent | D18: WA | E18: 981162 | F18: MJG@yahoo.com | G18: 253-585-7294 | H18: 2004-04-10 | I18: 70157
A19: Durtschi, Dane | B19: 7582 4th Lane | C19: Tacoma | D19: WA | E19: 981177 | F19: KVC@gmail.com | G19: 253-860-3024 | H19: 2005-06-16 | I19: 57280
A20: Fila, Bryon | B20: 1654 66th St. | C20: Seattle | D20: WA | E20: 981143 | F20: QKC@gmail.com | G20: 206-801-4535 | H20: 2008-11-15 | I20: 63015
A21: Fukumoto, Marvis | B21: 3653 4th Blvd. | C21: Seattle | D21: WA | E21: 981280 | F21: PKF@yahoo.com | G21: 206-563-8203 | H21: 2008-08-14 | I21: 54005
A22: General, Marlin | B22: 7900 173rd Lane | C22: Kent | D22: WA | E22: 981266 | F22: KFP@yahoo.com | G22: 253-547-6428 | H22: 2009-01-09 | I22: 41404
A24: What is your earned commission if your sales were $6000?
A26: Your Sales | B26: Commission
A27: 0 | B27: 0
A28: 5000 | B28: 200
A29: 12500 | B29: 625
A30: 15000 | B30: 975
A31: 20000 | B31: 1700
A33: What is the price for Quad?
A35: Product | B35: Supplier | C35: Price
A36: Flying Eagle | B36: Channel Craft | C36: 19
A37: V Range | B37: Colordao | C37: 18
A38: Quad | B38: Gel Boom | C38: 40
A39: Bellen | B39: Gel Boom | C39: 25
A40: Carlota | B40: Gel Boom | C40: 24
A42: If your Income is $3000, what is your tax?
A44: Income | B44: Tax
A45: 0 | B45: 0
A46: 1000 | B46: 25
A47: 2000 | B47: 60
A48: 5000 | B48: 120
A49: 10000 | B49: 175
A51: If your % grade is 89.5%, what is your decimal grade?
A53: % Grade | B53: Decimal Grade
A54: 0.94 | B54: 4
A55: 0.9305 | B55: 3.9
A56: 0.921 | B56: 3.8
A57: 0.9115 | B57: 3.7
A58: 0.902 | B58: 3.6
A59: 0.8925 | B59: 3.5
A60: 0.883 | B60: 3.4
A61: 0.8735 | B61: 3.3
A62: 0.864 | B62: 3.2
A63: 0.8545 | B63: 3.1
A64: 0.845 | B64: 3
A65: 0.8355 | B65: 2.9
A66: 0.826 | B66: 2.8
A67: 0.8165 | B67: 2.7
A68: 0.807 | B68: 2.6
A69: 0.7975 | B69: 2.5
A70: 0.788 | B70: 2.4
A71: 0.7785 | B71: 2.3
A72: 0.769 | B72: 2.2
A73: 0.7595 | B73: 2.1
A74: 0.75 | B74: 2
A75: 0.7405 | B75: 1.9
A76: 0.731 | B76: 1.8
A77: 0.7215 | B77: 1.7
A78: 0.712 | B78: 1.6
A79: 0.7025 | B79: 1.5
A80: 0.693 | B80: 1.4
A81: 0.6835 | B81: 1.3
A82: 0.674 | B82: 1.2
A83: 0.6645 | B83: 1.1
A84: 0.655 | B84: 1
A85: 0.6455 | B85: 0.9
A86: 0.636 | B86: 0.8
A87: 0.6265 | B87: 0.7
A88: 0.617 | B88: 0
A89: 0 | B89: 0

Sheet V(2)
A1: You start with a table with items you want to lookup in the first column (like employee name).
A2: You want to lookup the item so that you can get data about the item (like employee's e-mail address).
A3: V means Vertical, so you use VLOOKUP.
A4: VLOOKUP retrieves (goes and gets) something from a table and brings it back to the cell
A5: VLOOKUP: =VLOOKUP( lookup_value , table_array , col_index_num , [range_lookup] )
A6: lookup_value = thing you look at BEFORE you go over to the table.
A7: table_array = vertical table = VLOOKUP table
A8: col_index_num = which column in the table has the thing you want to go and get and bring back to the cell.
A9: [range_lookup] = Exact Match = FALSE or 0. Approximate Match = TRUE or 1 or omitted.
A10: Exact Match:
A11: VLOOKUP will look though each item in the first column of the VLOOKUP table and try to find a match
A12: If VLOOKUP cannot find a match it will be polite and say that it is not available: #N/A!
A13: If you are doing Exact Match use: Data Validation List: | E13: Keyboard: Alt, D, L
A14: Data Ribbon Tab, Data Tools, Data Validation, Allow textbox = List, Source = first column of VLOOKUP table_array.
A15: Click on this link to see more about the VLOOKUP function:
A16: VLOOKUP Function Beginner to Advanced 26 Examples: How To Use Excel VLOOKUP Function
A17: http://www.youtube.com/watch?v=-hJxIMBbmZY
A20: Employee | B20: Address | C20: City | D20: State | E20: Zip | F20: E-mail | G20: Phone | H20: Hire Date | I20: Salary
A21: June, Aler | B21: 3557 1st St. | C21: Seattle | D21: WA | E21: 981147 | F21: JNV@yahoo.com | G21: 206-594-4524 | H21: 2005-11-11 | I21: 79284
A22: Acero, Natisha | B22: 6281 173rd St. | C22: Tacoma | D22: WA | E22: 981317 | F22: HDT641@fun.edu | G22: 253-831-6211 | H22: 2008-10-08 | I22: 39555
A23: Bruess, Natisha | B23: 7149 1st Ave. | C23: Seattle | D23: WA | E23: 981335 | F23: YSE222@fun.edu | G23: 206-817-3217 | H23: 2013-03-07 | I23: 38066
A24: Chukes, Hal | B24: 7726 66th Ave. | C24: Tacoma | D24: WA | E24: 981118 | F24: MGF675@fun.edu | G24: 253-522-4565 | H24: 2012-05-17 | I24: 35751
A25: Dahnke, Georgeann | B25: 316 66th Blvd. 151st St. | C25: Kent | D25: WA | E25: 981244 | F25: RWN@fun.edu | G25: 253-716-7665 | H25: 2011-03-28 | I25: 61883
A26: Dillaman, Darius | B26: 965 151st St. | C26: Kent | D26: WA | E26: 981162 | F26: MJG@yahoo.com | G26: 253-585-7294 | H26: 2004-04-10 | I26: 70157
A27: Durtschi, Dane | B27: 7582 4th Lane | C27: Tacoma | D27: WA | E27: 981177 | F27: KVC@gmail.com | G27: 253-860-3024 | H27: 2005-06-16 | I27: 57280
A28: Fila, Bryon | B28: 1654 66th St. | C28: Seattle | D28: WA | E28: 981143 | F28: QKC@gmail.com | G28: 206-801-4535 | H28: 2008-11-15 | I28: 63015
A29: Fukumoto, Marvis | B29: 3653 4th Blvd. | C29: Seattle | D29: WA | E29: 981280 | F29: PKF@yahoo.com | G29: 206-563-8203 | H29: 2008-08-14 | I29: 54005
A30: General, Marlin | B30: 7900 173rd Lane | C30: Kent | D30: WA | E30: 981266 | F30: KFP@yahoo.com | G30: 253-547-6428 | H30: 2009-01-09 | I30: 41404
A32: Employee | B32: E-mail
A33: Chukes, Hal
A35: Employee | B35: Phone
A38: Employee | B38: Address
A45: Employee | B45: Salary
A46: General, Marlin
A47: Chukes, Hal
A48: June, Aler
A49: Fukumoto, Marvis
A50: Acero, Natisha
A51: Bruess, Natisha
A52: Dahnke, Georgeann

Sheet V(2an)
A1: You start with a table with items you want to lookup in the first column (like employee name).
A2: You want to lookup the item so that you can get data about the item (like employee's e-mail address).
A3: V means Vertical, so you use VLOOKUP.
A4: VLOOKUP retrieves (goes and gets) something from a table and brings it back to the cell
A5: VLOOKUP: =VLOOKUP( lookup_value , table_array , col_index_num , [range_lookup] )
A6: lookup_value = thing you look at BEFORE you go over to the table.
A7: table_array = vertical table = VLOOKUP table
A8: col_index_num = which column in the table has the thing you want to go and get and bring back to the cell.
A9: [range_lookup] = Exact Match = FALSE or 0. Approximate Match = TRUE or 1 or omitted.
A10: Exact Match:
A11: VLOOKUP will look though each item in the first column of the VLOOKUP table and try to find a match
A12: If VLOOKUP cannot find a match it will be polite and say that it is not available: #N/A!
A13: If you are doing Exact Match use: Data Validation List: | E13: Keyboard: Alt, D, L
A14: Data Ribbon Tab, Data Tools, Data Validation, Allow textbox = List, Source = first column of VLOOKUP table_array.
A15: Click on this link to see more about the VLOOKUP function:
A16: VLOOKUP Function Beginner to Advanced 26 Examples: How To Use Excel VLOOKUP Function
A17: http://www.youtube.com/watch?v=-hJxIMBbmZY
A20: Employee | B20: Address | C20: City | D20: State | E20: Zip | F20: E-mail | G20: Phone | H20: Hire Date | I20: Salary
A21: June, Aler | B21: 3557 1st St. | C21: Seattle | D21: WA | E21: 981147 | F21: JNV@yahoo.com | G21: 206-594-4524 | H21: 2005-11-11 | I21: 79284
A22: Acero, Natisha | B22: 6281 173rd St. | C22: Tacoma | D22: WA | E22: 981317 | F22: HDT641@fun.edu | G22: 253-831-6211 | H22: 2008-10-08 | I22: 39555
A23: Bruess, Natisha | B23: 7149 1st Ave. | C23: Seattle | D23: WA | E23: 981335 | F23: YSE222@fun.edu | G23: 206-817-3217 | H23: 2013-03-07 | I23: 38066
A24: Chukes, Hal | B24: 7726 66th Ave. | C24: Tacoma | D24: WA | E24: 981118 | F24: MGF675@fun.edu | G24: 253-522-4565 | H24: 2012-05-17 | I24: 35751
A25: Dahnke, Georgeann | B25: 316 66th Blvd. 151st St. | C25: Kent | D25: WA | E25: 981244 | F25: RWN@fun.edu | G25: 253-716-7665 | H25: 2011-03-28 | I25: 61883
A26: Dillaman, Darius | B26: 965 151st St. | C26: Kent | D26: WA | E26: 981162 | F26: MJG@yahoo.com | G26: 253-585-7294 | H26: 2004-04-10 | I26: 70157
A27: Durtschi, Dane | B27: 7582 4th Lane | C27: Tacoma | D27: WA | E27: 981177 | F27: KVC@gmail.com | G27: 253-860-3024 | H27: 2005-06-16 | I27: 57280
A28: Fila, Bryon | B28: 1654 66th St. | C28: Seattle | D28: WA | E28: 981143 | F28: QKC@gmail.com | G28: 206-801-4535 | H28: 2008-11-15 | I28: 63015
A29: Fukumoto, Marvis | B29: 3653 4th Blvd. | C29: Seattle | D29: WA | E29: 981280 | F29: PKF@yahoo.com | G29: 206-563-8203 | H29: 2008-08-14 | I29: 54005
A30: General, Marlin | B30: 7900 173rd Lane | C30: Kent | D30: WA | E30: 981266 | F30: KFP@yahoo.com | G30: 253-547-6428 | H30: 2009-01-09 | I30: 41404
A32: Employee | B32: E-mail
A33: Fukumoto, Marvis | B33: =VLOOKUP(A33,A21:I30,6,FALSE) -> PKF@yahoo.com
A35: Employee | B35: Phone
A36: General, Marlin | B36: =VLOOKUP(A36,A21:I30,7,FALSE) -> 253-547-6428
A38: Employee | B38: Address
A39: Bruess, Natisha | B39: =VLOOKUP(A39,A21:I30,2,0) -> 7149 1st Ave.
A45: Employee | B45: Salary
A46: General, Marlin | B46: =VLOOKUP(A46,$A$21:$I$30,9,0) -> 41404
A47: Chukes, Hal | B47: =VLOOKUP(A47,$A$21:$I$30,9,0) -> 35751
A48: June, Aler | B48: 79284
A49: Fukumoto, Marvis | B49: 54005
A50: Acero, Natisha | B50: 39555
A51: Bruess, Natisha | B51: 38066
A52: Dahnke, Georgeann | B52: 61883

Sheet V(3)
A1: Approximate Match:
A2: For Approximate Match the VLOOKUP table MUST be sorted on the first column: Ascending, A to Z, Small to Big.
A3: For Approximate Match VLOOKUP will race through the first column:
A4: 1) If the first value in the table is smaller than the lookup_value, VLOOKUP returns a Not Available Error: #N/A!
A5: 2) It looks through the first column until it bumps into the first value bigger than it and then jump back one row (it actually does a binary search which is really fast compared to Exact Match).
A6: 3) If the lookup_value is bigger than the last value, it stops at the last row.
A8: Your Sales | B8: Commission | D8: Your Sales | E8: Commission | I8: Your Sales | J8: Commission | L8: Employee | M8: Sales | N8: Commission
A9: 0 | B9: 0 | D9: 7500 | I9: 0 | J9: 0 | L9: Antonio May | M9: 9635.25
A10: 5000 | B10: 200 | I10: 5000 | J10: 200 | L10: Brittany Ellis | M10: 3856
A11: 12500 | B11: 625 | I11: 12500 | J11: 625 | L11: Clyde Haynes | M11: 33567
A12: 15000 | B12: 975 | I12: 15000 | J12: 975 | L12: Johnnie Jones | M12: 6895
A13: 20000 | B13: 1700 | I13: 20000 | J13: 1700 | L13: Emmett Fleming | M13: 13210
L14: Krista Kennedy | M14: 25912
A15: Your Sales | B15: Commission Rate | D15: Your Sales | E15: Commission Rate | F15: Commission Amount | L15: Bernadette Barber | M15: 24954
A16: 0 | B16: 0.0075 | D16: 7500 | L16: Marvin Wood | M16: 15364
A17: 5000 | B17: 0.0475 | L17: Wendy Thomas | M17: 2415
A18: 12500 | B18: 0.0575 | D18: *** Approximate Match = TRUE or 1 or omitted. | L18: Heidi Ross | M18: 33198
A19: 15000 | B19: 0.0725 | L19: Otis Harrison | M19: 23569
A20: 20000 | B20: 0.0925 | L20: Dale Edwards | M20: 6242
L21: Matt Malone | M21: 9111
A22: Income | B22: Tax | D22: Income | E22: Tax | L22: Robin Moran | M22: 138
A23: 0 | B23: 0 | D23: 6895.25 | L23: Penny Casey | M23: 9487
A24: 1000 | B24: 25 | L24: Marilyn Daniels | M24: 3607
A25: 2000 | B25: 60 | L25: Rodolfo Bryan | M25: 24144
A26: 5000 | B26: 120 | L26: Walter Simpson | M26: 18774
A27: 10000 | B27: 175 | L27: Thelma Jacobs | M27: 12464
L28: Priscilla French | M28: 13162
D29: Your % Grade | E29: Your Decimal Grade: | L29: Catherine Burgess | M29: 6318
D30: 0.935 | L30: Jody Fitzgerald | M30: 15656
L31: Mandy Graves | M31: 13148
A32: How it apears in Syllabus: | D32: How it must be setup for VLOOKUP: | L32: Blanche Martinez | M32: 2467
L33: Shane Watkins | M33: 6900
A34: % Grade | B34: Decimal Grade | D34: % Grade | E34: Decimal Grade | L34: Martin Wright | M34: 11455
A35: 0.94 | B35: 4 | D35: =INDEX($A$35:$B$69,ROWS($D35:$D$69),COLUMNS($D35:D35)) -> 0 | E35: =INDEX($A$35:$B$69,ROWS($D35:$D$69),COLUMNS($D35:E35)) -> 0 | L35: Robin Santos | M35: 5527
A36: 0.9305 | B36: 3.9 | D36: =INDEX($A$35:$B$69,ROWS($D36:$D$69),COLUMNS($D36:D36)) -> 0.6265 | E36: =INDEX($A$35:$B$69,ROWS($D36:$D$69),COLUMNS($D36:E36)) -> 0.7 | L36: Cedric Parker | M36: 4629
A37: 0.921 | B37: 3.8 | D37: =INDEX($A$35:$B$69,ROWS($D37:$D$69),COLUMNS($D37:D37)) -> 0.636 | E37: =INDEX($A$35:$B$69,ROWS($D37:$D$69),COLUMNS($D37:E37)) -> 0.8 | L37: Bonnie Schultz | M37: 28609
A38: 0.9115 | B38: 3.7 | D38: =INDEX($A$35:$B$69,ROWS($D38:$D$69),COLUMNS($D38:D38)) -> 0.6455 | E38: =INDEX($A$35:$B$69,ROWS($D38:$D$69),COLUMNS($D38:E38)) -> 0.9 | L38: Della Hernandez | M38: 19679
A39: 0.902 | B39: 3.6 | D39: =INDEX($A$35:$B$69,ROWS($D39:$D$69),COLUMNS($D39:D39)) -> 0.655 | E39: =INDEX($A$35:$B$69,ROWS($D39:$D$69),COLUMNS($D39:E39)) -> 1 | L39: Sonia Lee | M39: 11486
A40: 0.8925 | B40: 3.5 | D40: =INDEX($A$35:$B$69,ROWS($D40:$D$69),COLUMNS($D40:D40)) -> 0.6645 | E40: =INDEX($A$35:$B$69,ROWS($D40:$D$69),COLUMNS($D40:E40)) -> 1.1 | L40: Anna Pena | M40: 19776
A41: 0.883 | B41: 3.4 | D41: =INDEX($A$35:$B$69,ROWS($D41:$D$69),COLUMNS($D41:D41)) -> 0.674 | E41: =INDEX($A$35:$B$69,ROWS($D41:$D$69),COLUMNS($D41:E41)) -> 1.2 | L41: Sara Poole | M41: 1585
A42: 0.8735 | B42: 3.3 | D42: =INDEX($A$35:$B$69,ROWS($D42:$D$69),COLUMNS($D42:D42)) -> 0.6835 | E42: =INDEX($A$35:$B$69,ROWS($D42:$D$69),COLUMNS($D42:E42)) -> 1.3 | L42: Claire Gibson | M42: 11501
A43: 0.864 | B43: 3.2 | D43: =INDEX($A$35:$B$69,ROWS($D43:$D$69),COLUMNS($D43:D43)) -> 0.693 | E43: =INDEX($A$35:$B$69,ROWS($D43:$D$69),COLUMNS($D43:E43)) -> 1.4 | L43: Eleanor Cunningham | M43: 34247
A44: 0.8545 | B44: 3.1 | D44: =INDEX($A$35:$B$69,ROWS($D44:$D$69),COLUMNS($D44:D44)) -> 0.7025 | E44: =INDEX($A$35:$B$69,ROWS($D44:$D$69),COLUMNS($D44:E44)) -> 1.5 | L44: Elena Newton | M44: 7377
A45: 0.845 | B45: 3 | D45: =INDEX($A$35:$B$69,ROWS($D45:$D$69),COLUMNS($D45:D45)) -> 0.712 | E45: =INDEX($A$35:$B$69,ROWS($D45:$D$69),COLUMNS($D45:E45)) -> 1.6 | L45: Renee Reid | M45: 24817
A46: 0.8355 | B46: 2.9 | D46: =INDEX($A$35:$B$69,ROWS($D46:$D$69),COLUMNS($D46:D46)) -> 0.7215 | E46: =INDEX($A$35:$B$69,ROWS($D46:$D$69),COLUMNS($D46:E46)) -> 1.7 | L46: Maurice Gardner | M46: 24509
A47: 0.826 | B47: 2.8 | D47: =INDEX($A$35:$B$69,ROWS($D47:$D$69),COLUMNS($D47:D47)) -> 0.731 | E47: =INDEX($A$35:$B$69,ROWS($D47:$D$69),COLUMNS($D47:E47)) -> 1.8 | L47: Juanita Kelley | M47: 15938
A48: 0.8165 | B48: 2.7 | D48: =INDEX($A$35:$B$69,ROWS($D48:$D$69),COLUMNS($D48:D48)) -> 0.7405 | E48: =INDEX($A$35:$B$69,ROWS($D48:$D$69),COLUMNS($D48:E48)) -> 1.9 | L48: Lynne Joseph | M48: 27338
A49: 0.807 | B49: 2.6 | D49: =INDEX($A$35:$B$69,ROWS($D49:$D$69),COLUMNS($D49:D49)) -> 0.75 | E49: =INDEX($A$35:$B$69,ROWS($D49:$D$69),COLUMNS($D49:E49)) -> 2 | L49: Frederick Cohen | M49: 28257
A50: 0.7975 | B50: 2.5 | D50: =INDEX($A$35:$B$69,ROWS($D50:$D$69),COLUMNS($D50:D50)) -> 0.7595 | E50: =INDEX($A$35:$B$69,ROWS($D50:$D$69),COLUMNS($D50:E50)) -> 2.1 | L50: Kent Spencer | M50: 21829
A51: 0.788 | B51: 2.4 | D51: =INDEX($A$35:$B$69,ROWS($D51:$D$69),COLUMNS($D51:D51)) -> 0.769 | E51: =INDEX($A$35:$B$69,ROWS($D51:$D$69),COLUMNS($D51:E51)) -> 2.2 | L51: Scott Roberts | M51: 13999
A52: 0.7785 | B52: 2.3 | D52: =INDEX($A$35:$B$69,ROWS($D52:$D$69),COLUMNS($D52:D52)) -> 0.7785 | E52: =INDEX($A$35:$B$69,ROWS($D52:$D$69),COLUMNS($D52:E52)) -> 2.3 | L52: Hannah Love | M52: 22301
A53: 0.769 | B53: 2.2 | D53: =INDEX($A$35:$B$69,ROWS($D53:$D$69),COLUMNS($D53:D53)) -> 0.788 | E53: =INDEX($A$35:$B$69,ROWS($D53:$D$69),COLUMNS($D53:E53)) -> 2.4 | L53: Rafael Mckenzie | M53: 3969
A54: 0.7595 | B54: 2.1 | D54: =INDEX($A$35:$B$69,ROWS($D54:$D$69),COLUMNS($D54:D54)) -> 0.7975 | E54: =INDEX($A$35:$B$69,ROWS($D54:$D$69),COLUMNS($D54:E54)) -> 2.5 | L54: Rosie Vega | M54: 12072
A55: 0.75 | B55: 2 | D55: =INDEX($A$35:$B$69,ROWS($D55:$D$69),COLUMNS($D55:D55)) -> 0.807 | E55: =INDEX($A$35:$B$69,ROWS($D55:$D$69),COLUMNS($D55:E55)) -> 2.6 | L55: Ryan Phillips | M55: 16733
A56: 0.7405 | B56: 1.9 | D56: =INDEX($A$35:$B$69,ROWS($D56:$D$69),COLUMNS($D56:D56)) -> 0.8165 | E56: =INDEX($A$35:$B$69,ROWS($D56:$D$69),COLUMNS($D56:E56)) -> 2.7 | L56: Lorene Thompson | M56: 32260
A57: 0.731 | B57: 1.8 | D57: =INDEX($A$35:$B$69,ROWS($D57:$D$69),COLUMNS($D57:D57)) -> 0.826 | E57: =INDEX($A$35:$B$69,ROWS($D57:$D$69),COLUMNS($D57:E57)) -> 2.8 | L57: Nellie Freeman | M57: 16905
A58: 0.7215 | B58: 1.7 | D58: =INDEX($A$35:$B$69,ROWS($D58:$D$69),COLUMNS($D58:D58)) -> 0.8355 | E58: =INDEX($A$35:$B$69,ROWS($D58:$D$69),COLUMNS($D58:E58)) -> 2.9 | L58: Elvira Cannon | M58: 31439
A59: 0.712 | B59: 1.6 | D59: =INDEX($A$35:$B$69,ROWS($D59:$D$69),COLUMNS($D59:D59)) -> 0.845 | E59: =INDEX($A$35:$B$69,ROWS($D59:$D$69),COLUMNS($D59:E59)) -> 3 | L59: Kerry Norris | M59: 34687
A60: 0.7025 | B60: 1.5 | D60: =INDEX($A$35:$B$69,ROWS($D60:$D$69),COLUMNS($D60:D60)) -> 0.8545 | E60: =INDEX($A$35:$B$69,ROWS($D60:$D$69),COLUMNS($D60:E60)) -> 3.1 | L60: Rosalie Nunez | M60: 26559
A61: 0.693 | B61: 1.4 | D61: =INDEX($A$35:$B$69,ROWS($D61:$D$69),COLUMNS($D61:D61)) -> 0.864 | E61: =INDEX($A$35:$B$69,ROWS($D61:$D$69),COLUMNS($D61:E61)) -> 3.2 | L61: Elias Lloyd | M61: 34179
A62: 0.6835 | B62: 1.3 | D62: =INDEX($A$35:$B$69,ROWS($D62:$D$69),COLUMNS($D62:D62)) -> 0.8735 | E62: =INDEX($A$35:$B$69,ROWS($D62:$D$69),COLUMNS($D62:E62)) -> 3.3 | L62: Mona Tate | M62: 7654
A63: 0.674 | B63: 1.2 | D63: =INDEX($A$35:$B$69,ROWS($D63:$D$69),COLUMNS($D63:D63)) -> 0.883 | E63: =INDEX($A$35:$B$69,ROWS($D63:$D$69),COLUMNS($D63:E63)) -> 3.4 | L63: Blanca Terry | M63: 24034
A64: 0.6645 | B64: 1.1 | D64: =INDEX($A$35:$B$69,ROWS($D64:$D$69),COLUMNS($D64:D64)) -> 0.8925 | E64: =INDEX($A$35:$B$69,ROWS($D64:$D$69),COLUMNS($D64:E64)) -> 3.5 | L64: Kyle Reyes | M64: 14395
A65: 0.655 | B65: 1 | D65: =INDEX($A$35:$B$69,ROWS($D65:$D$69),COLUMNS($D65:D65)) -> 0.902 | E65: =INDEX($A$35:$B$69,ROWS($D65:$D$69),COLUMNS($D65:E65)) -> 3.6 | L65: Delores Coleman | M65: 33789
A66: 0.6455 | B66: 0.9 | D66: =INDEX($A$35:$B$69,ROWS($D66:$D$69),COLUMNS($D66:D66)) -> 0.9115 | E66: =INDEX($A$35:$B$69,ROWS($D66:$D$69),COLUMNS($D66:E66)) -> 3.7 | L66: Amanda Black | M66: 2856
A67: 0.636 | B67: 0.8 | D67: =INDEX($A$35:$B$69,ROWS($D67:$D$69),COLUMNS($D67:D67)) -> 0.921 | E67: =INDEX($A$35:$B$69,ROWS($D67:$D$69),COLUMNS($D67:E67)) -> 3.8 | L67: Grant Gibbs | M67: 29477
A68: 0.6265 | B68: 0.7 | D68: =INDEX($A$35:$B$69,ROWS($D68:$D$69),COLUMNS($D68:D68)) -> 0.9305 | E68: =INDEX($A$35:$B$69,ROWS($D68:$D$69),COLUMNS($D68:E68)) -> 3.9 | L68: Emily Carr | M68: 31158
A69: 0 | B69: 0 | D69: =INDEX($A$35:$B$69,ROWS($D69:$D$69),COLUMNS($D69:D69)) -> 0.94 | E69: =INDEX($A$35:$B$69,ROWS($D69:$D$69),COLUMNS($D69:E69)) -> 4 | L69: Lee Ruiz | M69: 3350
L70: Eloise Beck | M70: 22735
L71: Norman Sanders | M71: 8853
L72: Glenda Page | M72: 14882
L73: Ian Neal | M73: 6835
L74: Mae Sparks | M74: 10569
L75: Tricia Curtis | M75: 17916
L76: Howard Wilkerson | M76: 3846
L77: Cary Stephens | M77: 26659
L78: Jeanne Boyd | M78: 23916
L79: Terrell Walsh | M79: 12124
L80: Javier Bennett | M80: 19504
L81: Jonathon Manning | M81: 30158
L82: Myra Hubbard | M82: 15801
L83: Lucille Graham | M83: 1586
L84: Craig Bryant | M84: 27113
L85: Krystal Wagner | M85: 32183
L86: Katrina Carter | M86: 11047
L87: Sergio Lucas | M87: 34753
L88: Joyce Taylor | M88: 12187
L89: Marta Watts | M89: 17897
L90: Candace Holloway | M90: 10202
L91: Gwen James | M91: 27823
L92: Lela Snyder | M92: 1352
L93: Louise Mathis | M93: 5515
L94: Maxine Miller | M94: 15066
L95: Omar Gonzales | M95: 8636
L96: Loren Delgado | M96: 2377
L97: Brandi Shelton | M97: 20270
L98: Jimmie Walters | M98: 2893
L99: Gilberto Robbins | M99: 26703
L100: Dianne Pearson | M100: 14065
L101: Derek Clayton | M101: 28685
L102: Jon Robinson | M102: 5415
L103: Silvia Johnston | M103: 13310
L104: Denise Morris | M104: 527
L105: Orlando Vasquez | M105: 24990
L106: Cindy Chavez | M106: 30968
L107: Andrea Day | M107: 12466
L108: Vincent Summers | M108: 3791

Sheet V(3an)
A1: Approximate Match:
A2: For Approximate Match the VLOOKUP table MUST be sorted on the first column: Ascending, A to Z, Small to Big.
A3: For Approximate Match VLOOKUP will race through the first column:
A4: 1) If the first value in the table is smaller than the lookup_value, VLOOKUP returns a Not Available Error: #N/A!
A5: 2) It looks through the first column until it bumps into the first value bigger than it and then jump back one row (it actually does a binary search which is really fast compared to Exact Match).
A6: 3) If the lookup_value is bigger than the last value, it stops at the last row.
A8: Your Sales | B8: Commission | D8: Your Sales | E8: Commission | I8: Your Sales | J8: Commission | L8: Employee | M8: Sales | N8: Commission
A9: 0 | B9: 0 | D9: 7500 | E9: =VLOOKUP(D9,A9:B13,2,TRUE) -> 200 | I9: 0 | J9: 0 | L9: Antonio May | M9: 9635.25 | N9: =VLOOKUP(M9,$I$9:$J$13,2,TRUE) -> 200
A10: 5000 | B10: 200 | I10: 5000 | J10: 200 | L10: Brittany Ellis | M10: 3856 | N10: =VLOOKUP(M10,$I$9:$J$13,2,TRUE) -> 0
A11: 12500 | B11: 625 | I11: 12500 | J11: 625 | L11: Clyde Haynes | M11: 33567 | N11: 1700
A12: 15000 | B12: 975 | I12: 15000 | J12: 975 | L12: Johnnie Jones | M12: 6895 | N12: 200
A13: 20000 | B13: 1700 | I13: 20000 | J13: 1700 | L13: Emmett Fleming | M13: 13210 | N13: 625
L14: Krista Kennedy | M14: 25912 | N14: 1700
A15: Your Sales | B15: Commission Rate | D15: Your Sales | E15: Commission Rate | F15: Commission Amount | L15: Bernadette Barber | M15: 24954 | N15: 1700
A16: 0 | B16: 0.0075 | D16: 7500 | E16: =VLOOKUP(D16,A16:B20,2) -> 0.0475 | F16: =ROUND(D16*E16,2) -> 356.25 | L16: Marvin Wood | M16: 15364 | N16: 975
A17: 5000 | B17: 0.0475 | L17: Wendy Thomas | M17: 2415 | N17: 0
A18: 12500 | B18: 0.0575 | D18: *** Approximate Match = TRUE or 1 or omitted. | L18: Heidi Ross | M18: 33198 | N18: 1700
A19: 15000 | B19: 0.0725 | L19: Otis Harrison | M19: 23569 | N19: 1700
A20: 20000 | B20: 0.0925 | L20: Dale Edwards | M20: 6242 | N20: 200
L21: Matt Malone | M21: 9111 | N21: 200
A22: Income | B22: Tax | D22: Income | E22: Tax | L22: Robin Moran | M22: 138 | N22: 0
A23: 0 | B23: 0 | D23: 6895.25 | E23: =VLOOKUP(D23,A23:B27,2) -> 120 | L23: Penny Casey | M23: 9487 | N23: 200
A24: 1000 | B24: 25 | L24: Marilyn Daniels | M24: 3607 | N24: 0
A25: 2000 | B25: 60 | L25: Rodolfo Bryan | M25: 24144 | N25: 1700
A26: 5000 | B26: 120 | L26: Walter Simpson | M26: 18774 | N26: 975
A27: 10000 | B27: 175 | L27: Thelma Jacobs | M27: 12464 | N27: 200
L28: Priscilla French | M28: 13162 | N28: 625
D29: Your % Grade | E29: Your Decimal Grade: | L29: Catherine Burgess | M29: 6318 | N29: 200
D30: 0.935 | E30: =VLOOKUP(D30,D35:E69,2) -> 3.9 | L30: Jody Fitzgerald | M30: 15656 | N30: 975
L31: Mandy Graves | M31: 13148 | N31: 625
A32: How it apears in Syllabus: | D32: How it must be setup for VLOOKUP: | L32: Blanche Martinez | M32: 2467 | N32: 0
L33: Shane Watkins | M33: 6900 | N33: 200
A34: % Grade | B34: Decimal Grade | D34: % Grade | E34: Decimal Grade | L34: Martin Wright | M34: 11455 | N34: 200
A35: 0.94 | B35: 4 | D35: =INDEX($A$35:$B$69,ROWS($D35:$D$69),COLUMNS($D35:D35)) -> 0 | E35: =INDEX($A$35:$B$69,ROWS($D35:$D$69),COLUMNS($D35:E35)) -> 0 | L35: Robin Santos | M35: 5527 | N35: 200
A36: 0.9305 | B36: 3.9 | D36: =INDEX($A$35:$B$69,ROWS($D36:$D$69),COLUMNS($D36:D36)) -> 0.6265 | E36: =INDEX($A$35:$B$69,ROWS($D36:$D$69),COLUMNS($D36:E36)) -> 0.7 | L36: Cedric Parker | M36: 4629 | N36: 0
A37: 0.921 | B37: 3.8 | D37: =INDEX($A$35:$B$69,ROWS($D37:$D$69),COLUMNS($D37:D37)) -> 0.636 | E37: =INDEX($A$35:$B$69,ROWS($D37:$D$69),COLUMNS($D37:E37)) -> 0.8 | L37: Bonnie Schultz | M37: 28609 | N37: 1700
A38: 0.9115 | B38: 3.7 | D38: =INDEX($A$35:$B$69,ROWS($D38:$D$69),COLUMNS($D38:D38)) -> 0.6455 | E38: =INDEX($A$35:$B$69,ROWS($D38:$D$69),COLUMNS($D38:E38)) -> 0.9 | L38: Della Hernandez | M38: 19679 | N38: 975
A39: 0.902 | B39: 3.6 | D39: =INDEX($A$35:$B$69,ROWS($D39:$D$69),COLUMNS($D39:D39)) -> 0.655 | E39: =INDEX($A$35:$B$69,ROWS($D39:$D$69),COLUMNS($D39:E39)) -> 1 | L39: Sonia Lee | M39: 11486 | N39: 200
A40: 0.8925 | B40: 3.5 | D40: =INDEX($A$35:$B$69,ROWS($D40:$D$69),COLUMNS($D40:D40)) -> 0.6645 | E40: =INDEX($A$35:$B$69,ROWS($D40:$D$69),COLUMNS($D40:E40)) -> 1.1 | L40: Anna Pena | M40: 19776 | N40: 975
A41: 0.883 | B41: 3.4 | D41: =INDEX($A$35:$B$69,ROWS($D41:$D$69),COLUMNS($D41:D41)) -> 0.674 | E41: =INDEX($A$35:$B$69,ROWS($D41:$D$69),COLUMNS($D41:E41)) -> 1.2 | L41: Sara Poole | M41: 1585 | N41: 0
A42: 0.8735 | B42: 3.3 | D42: =INDEX($A$35:$B$69,ROWS($D42:$D$69),COLUMNS($D42:D42)) -> 0.6835 | E42: =INDEX($A$35:$B$69,ROWS($D42:$D$69),COLUMNS($D42:E42)) -> 1.3 | L42: Claire Gibson | M42: 11501 | N42: 200
A43: 0.864 | B43: 3.2 | D43: =INDEX($A$35:$B$69,ROWS($D43:$D$69),COLUMNS($D43:D43)) -> 0.693 | E43: =INDEX($A$35:$B$69,ROWS($D43:$D$69),COLUMNS($D43:E43)) -> 1.4 | L43: Eleanor Cunningham | M43: 34247 | N43: 1700
A44: 0.8545 | B44: 3.1 | D44: =INDEX($A$35:$B$69,ROWS($D44:$D$69),COLUMNS($D44:D44)) -> 0.7025 | E44: =INDEX($A$35:$B$69,ROWS($D44:$D$69),COLUMNS($D44:E44)) -> 1.5 | L44: Elena Newton | M44: 7377 | N44: 200
A45: 0.845 | B45: 3 | D45: =INDEX($A$35:$B$69,ROWS($D45:$D$69),COLUMNS($D45:D45)) -> 0.712 | E45: =INDEX($A$35:$B$69,ROWS($D45:$D$69),COLUMNS($D45:E45)) -> 1.6 | L45: Renee Reid | M45: 24817 | N45: 1700
A46: 0.8355 | B46: 2.9 | D46: =INDEX($A$35:$B$69,ROWS($D46:$D$69),COLUMNS($D46:D46)) -> 0.7215 | E46: =INDEX($A$35:$B$69,ROWS($D46:$D$69),COLUMNS($D46:E46)) -> 1.7 | L46: Maurice Gardner | M46: 24509 | N46: 1700
A47: 0.826 | B47: 2.8 | D47: =INDEX($A$35:$B$69,ROWS($D47:$D$69),COLUMNS($D47:D47)) -> 0.731 | E47: =INDEX($A$35:$B$69,ROWS($D47:$D$69),COLUMNS($D47:E47)) -> 1.8 | L47: Juanita Kelley | M47: 15938 | N47: 975
A48: 0.8165 | B48: 2.7 | D48: =INDEX($A$35:$B$69,ROWS($D48:$D$69),COLUMNS($D48:D48)) -> 0.7405 | E48: =INDEX($A$35:$B$69,ROWS($D48:$D$69),COLUMNS($D48:E48)) -> 1.9 | L48: Lynne Joseph | M48: 27338 | N48: 1700
A49: 0.807 | B49: 2.6 | D49: =INDEX($A$35:$B$69,ROWS($D49:$D$69),COLUMNS($D49:D49)) -> 0.75 | E49: =INDEX($A$35:$B$69,ROWS($D49:$D$69),COLUMNS($D49:E49)) -> 2 | L49: Frederick Cohen | M49: 28257 | N49: 1700
A50: 0.7975 | B50: 2.5 | D50: =INDEX($A$35:$B$69,ROWS($D50:$D$69),COLUMNS($D50:D50)) -> 0.7595 | E50: =INDEX($A$35:$B$69,ROWS($D50:$D$69),COLUMNS($D50:E50)) -> 2.1 | L50: Kent Spencer | M50: 21829 | N50: 1700
A51: 0.788 | B51: 2.4 | D51: =INDEX($A$35:$B$69,ROWS($D51:$D$69),COLUMNS($D51:D51)) -> 0.769 | E51: =INDEX($A$35:$B$69,ROWS($D51:$D$69),COLUMNS($D51:E51)) -> 2.2 | L51: Scott Roberts | M51: 13999 | N51: 625
A52: 0.7785 | B52: 2.3 | D52: =INDEX($A$35:$B$69,ROWS($D52:$D$69),COLUMNS($D52:D52)) -> 0.7785 | E52: =INDEX($A$35:$B$69,ROWS($D52:$D$69),COLUMNS($D52:E52)) -> 2.3 | L52: Hannah Love | M52: 22301 | N52: 1700
A53: 0.769 | B53: 2.2 | D53: =INDEX($A$35:$B$69,ROWS($D53:$D$69),COLUMNS($D53:D53)) -> 0.788 | E53: =INDEX($A$35:$B$69,ROWS($D53:$D$69),COLUMNS($D53:E53)) -> 2.4 | L53: Rafael Mckenzie | M53: 3969 | N53: 0
A54: 0.7595 | B54: 2.1 | D54: =INDEX($A$35:$B$69,ROWS($D54:$D$69),COLUMNS($D54:D54)) -> 0.7975 | E54: =INDEX($A$35:$B$69,ROWS($D54:$D$69),COLUMNS($D54:E54)) -> 2.5 | L54: Rosie Vega | M54: 12072 | N54: 200
A55: 0.75 | B55: 2 | D55: =INDEX($A$35:$B$69,ROWS($D55:$D$69),COLUMNS($D55:D55)) -> 0.807 | E55: =INDEX($A$35:$B$69,ROWS($D55:$D$69),COLUMNS($D55:E55)) -> 2.6 | L55: Ryan Phillips | M55: 16733 | N55: 975
A56: 0.7405 | B56: 1.9 | D56: =INDEX($A$35:$B$69,ROWS($D56:$D$69),COLUMNS($D56:D56)) -> 0.8165 | E56: =INDEX($A$35:$B$69,ROWS($D56:$D$69),COLUMNS($D56:E56)) -> 2.7 | L56: Lorene Thompson | M56: 32260 | N56: 1700
A57: 0.731 | B57: 1.8 | D57: =INDEX($A$35:$B$69,ROWS($D57:$D$69),COLUMNS($D57:D57)) -> 0.826 | E57: =INDEX($A$35:$B$69,ROWS($D57:$D$69),COLUMNS($D57:E57)) -> 2.8 | L57: Nellie Freeman | M57: 16905 | N57: 975
A58: 0.7215 | B58: 1.7 | D58: =INDEX($A$35:$B$69,ROWS($D58:$D$69),COLUMNS($D58:D58)) -> 0.8355 | E58: =INDEX($A$35:$B$69,ROWS($D58:$D$69),COLUMNS($D58:E58)) -> 2.9 | L58: Elvira Cannon | M58: 31439 | N58: 1700
A59: 0.712 | B59: 1.6 | D59: =INDEX($A$35:$B$69,ROWS($D59:$D$69),COLUMNS($D59:D59)) -> 0.845 | E59: =INDEX($A$35:$B$69,ROWS($D59:$D$69),COLUMNS($D59:E59)) -> 3 | L59: Kerry Norris | M59: 34687 | N59: 1700
A60: 0.7025 | B60: 1.5 | D60: =INDEX($A$35:$B$69,ROWS($D60:$D$69),COLUMNS($D60:D60)) -> 0.8545 | E60: =INDEX($A$35:$B$69,ROWS($D60:$D$69),COLUMNS($D60:E60)) -> 3.1 | L60: Rosalie Nunez | M60: 26559 | N60: 1700
A61: 0.693 | B61: 1.4 | D61: =INDEX($A$35:$B$69,ROWS($D61:$D$69),COLUMNS($D61:D61)) -> 0.864 | E61: =INDEX($A$35:$B$69,ROWS($D61:$D$69),COLUMNS($D61:E61)) -> 3.2 | L61: Elias Lloyd | M61: 34179 | N61: 1700
A62: 0.6835 | B62: 1.3 | D62: =INDEX($A$35:$B$69,ROWS($D62:$D$69),COLUMNS($D62:D62)) -> 0.8735 | E62: =INDEX($A$35:$B$69,ROWS($D62:$D$69),COLUMNS($D62:E62)) -> 3.3 | L62: Mona Tate | M62: 7654 | N62: 200
A63: 0.674 | B63: 1.2 | D63: =INDEX($A$35:$B$69,ROWS($D63:$D$69),COLUMNS($D63:D63)) -> 0.883 | E63: =INDEX($A$35:$B$69,ROWS($D63:$D$69),COLUMNS($D63:E63)) -> 3.4 | L63: Blanca Terry | M63: 24034 | N63: 1700
A64: 0.6645 | B64: 1.1 | D64: =INDEX($A$35:$B$69,ROWS($D64:$D$69),COLUMNS($D64:D64)) -> 0.8925 | E64: =INDEX($A$35:$B$69,ROWS($D64:$D$69),COLUMNS($D64:E64)) -> 3.5 | L64: Kyle Reyes | M64: 14395 | N64: 625
A65: 0.655 | B65: 1 | D65: =INDEX($A$35:$B$69,ROWS($D65:$D$69),COLUMNS($D65:D65)) -> 0.902 | E65: =INDEX($A$35:$B$69,ROWS($D65:$D$69),COLUMNS($D65:E65)) -> 3.6 | L65: Delores Coleman | M65: 33789 | N65: 1700
A66: 0.6455 | B66: 0.9 | D66: =INDEX($A$35:$B$69,ROWS($D66:$D$69),COLUMNS($D66:D66)) -> 0.9115 | E66: =INDEX($A$35:$B$69,ROWS($D66:$D$69),COLUMNS($D66:E66)) -> 3.7 | L66: Amanda Black | M66: 2856 | N66: 0
A67: 0.636 | B67: 0.8 | D67: =INDEX($A$35:$B$69,ROWS($D67:$D$69),COLUMNS($D67:D67)) -> 0.921 | E67: =INDEX($A$35:$B$69,ROWS($D67:$D$69),COLUMNS($D67:E67)) -> 3.8 | L67: Grant Gibbs | M67: 29477 | N67: 1700
A68: 0.6265 | B68: 0.7 | D68: =INDEX($A$35:$B$69,ROWS($D68:$D$69),COLUMNS($D68:D68)) -> 0.9305 | E68: =INDEX($A$35:$B$69,ROWS($D68:$D$69),COLUMNS($D68:E68)) -> 3.9 | L68: Emily Carr | M68: 31158 | N68: 1700
A69: 0 | B69: 0 | D69: =INDEX($A$35:$B$69,ROWS($D69:$D$69),COLUMNS($D69:D69)) -> 0.94 | E69: =INDEX($A$35:$B$69,ROWS($D69:$D$69),COLUMNS($D69:E69)) -> 4 | L69: Lee Ruiz | M69: 3350 | N69: 0
L70: Eloise Beck | M70: 22735 | N70: 1700
L71: Norman Sanders | M71: 8853 | N71: 200
L72: Glenda Page | M72: 14882 | N72: 625
L73: Ian Neal | M73: 6835 | N73: 200
L74: Mae Sparks | M74: 10569 | N74: =VLOOKUP(M74,$I$9:$J$13,2,TRUE) -> 200
L75: Tricia Curtis | M75: 17916 | N75: 975
L76: Howard Wilkerson | M76: 3846 | N76: 0
L77: Cary Stephens | M77: 26659 | N77: 1700
L78: Jeanne Boyd | M78: 23916 | N78: 1700
L79: Terrell Walsh | M79: 12124 | N79: 200
L80: Javier Bennett | M80: 19504 | N80: 975
L81: Jonathon Manning | M81: 30158 | N81: 1700
L82: Myra Hubbard | M82: 15801 | N82: 975
L83: Lucille Graham | M83: 1586 | N83: 0
L84: Craig Bryant | M84: 27113 | N84: 1700
L85: Krystal Wagner | M85: 32183 | N85: 1700
L86: Katrina Carter | M86: 11047 | N86: 200
L87: Sergio Lucas | M87: 34753 | N87: 1700
L88: Joyce Taylor | M88: 12187 | N88: 200
L89: Marta Watts | M89: 17897 | N89: 975
L90: Candace Holloway | M90: 10202 | N90: 200
L91: Gwen James | M91: 27823 | N91: 1700
L92: Lela Snyder | M92: 1352 | N92: 0
L93: Louise Mathis | M93: 5515 | N93: 200
L94: Maxine Miller | M94: 15066 | N94: 975
L95: Omar Gonzales | M95: 8636 | N95: 200
L96: Loren Delgado | M96: 2377 | N96: 0
L97: Brandi Shelton | M97: 20270 | N97: 1700
L98: Jimmie Walters | M98: 2893 | N98: 0
L99: Gilberto Robbins | M99: 26703 | N99: 1700
L100: Dianne Pearson | M100: 14065 | N100: 625
L101: Derek Clayton | M101: 28685 | N101: 1700
L102: Jon Robinson | M102: 5415 | N102: 200
L103: Silvia Johnston | M103: 13310 | N103: 625
L104: Denise Morris | M104: 527 | N104: 0
L105: Orlando Vasquez | M105: 24990 | N105: 1700
L106: Cindy Chavez | M106: 30968 | N106: 1700
L107: Andrea Day | M107: 12466 | N107: 200
L108: Vincent Summers | M108: 3791 | N108: 0

Sheet V(4)
A1: Description for learning: | C1: Category Label for learning: | E1: Your Sales | F1: Commission
A2: =DOLLAR(E2,0)&" or more, all the way up to, but not including "&DOLLAR(E3,0) -> $0 or more, all the way up to, but not including $5,000 | C2: =DOLLAR(E2,0)&" <= "&E$1&" < "&DOLLAR(E3,0) -> $0 <= Your Sales < $5,000 | E2: 0 | F2: 0
A3: =DOLLAR(E3,0)&" or more, all the way up to, but not including "&DOLLAR(E4,0) -> $5,000 or more, all the way up to, but not including $12,500 | C3: =DOLLAR(E3,0)&" <= "&E$1&" < "&DOLLAR(E4,0) -> $5,000 <= Your Sales < $12,500 | E3: 5000 | F3: 200
A4: $12,500 or more, all the way up to, but not including $15,000 | C4: $12,500 <= Your Sales < $15,000 | E4: 12500 | F4: 625
A5: $15,000 or more, all the way up to, but not including $20,000 | C5: $15,000 <= Your Sales < $20,000 | E5: 15000 | F5: 975
A6: ="Bigger than or equal to "&DOLLAR(E6,0) -> Bigger than or equal to $20,000 | C6: =DOLLAR(E6,0)&" <= "&E1 -> $20,000 <= Your Sales | E6: 20000 | F6: 1700
E8: Your Sales | F8: Commission
E9: 7500 | F9: =VLOOKUP(E9,E2:F6,2) -> 200

Sheet V(4an)
A1: Description for learning: | C1: Category Label for learning: | E1: Your Sales | F1: Commission
A2: =DOLLAR(E2,0)&" or more, all the way up to, but not including "&DOLLAR(E3,0) -> $0 or more, all the way up to, but not including $5,000 | C2: =DOLLAR(E2,0)&" <= "&E$1&" < "&DOLLAR(E3,0) -> $0 <= Your Sales < $5,000 | E2: 0 | F2: 0
A3: =DOLLAR(E3,0)&" or more, all the way up to, but not including "&DOLLAR(E4,0) -> $5,000 or more, all the way up to, but not including $12,500 | C3: =DOLLAR(E3,0)&" <= "&E$1&" < "&DOLLAR(E4,0) -> $5,000 <= Your Sales < $12,500 | E3: 5000 | F3: 200
A4: $12,500 or more, all the way up to, but not including $15,000 | C4: $12,500 <= Your Sales < $15,000 | E4: 12500 | F4: 625
A5: $15,000 or more, all the way up to, but not including $20,000 | C5: $15,000 <= Your Sales < $20,000 | E5: 15000 | F5: 975
A6: ="Bigger than or equal to "&DOLLAR(E6,0) -> Bigger than or equal to $20,000 | C6: =DOLLAR(E6,0)&" <= "&E1 -> $20,000 <= Your Sales | E6: 20000 | F6: 1700
E8: Your Sales | F8: Commission
E9: 7500 | F9: =VLOOKUP(E9,E2:F6,2) -> 200

Sheet V(5)
A1: Date | B1: Product | C1: Region | D1: SalesRep | E1: Customer | F1: Units | G1: COGS | H1: Sales | I1: Sales Category
A2: 2011-01-26 | B2: Bellen | C2: West | D2: Pham | E2: FRED | F2: 7 | G2: 70 | H2: 154
A3: 2011-01-10 | B3: Bellen | C3: MidWest | D3: Gault | E3: FM | F3: 61 | G3: 610 | H3: 1342
A4: 2011-01-03 | B4: Sunshine | C4: South | D4: Sioux | E4: DDH | F4: 6 | G4: 48 | H4: 114
A5: 2011-01-07 | B5: Sunset | C5: West | D5: Pham | E5: T | F5: 61 | G5: 564.25 | H5: 1281
A6: 2011-01-18 | B6: Sunshine | C6: West | D6: Sioux | E6: AST | F6: 8 | G6: 64 | H6: 152
A7: 2011-01-20 | B7: Carlota | C7: East | D7: Chin | E7: ET | F7: 59 | G7: 649 | H7: 1357
A8: 2011-01-26 | B8: Bellen | C8: MidWest | D8: Gault | E8: PSA | F8: 21 | G8: 210 | H8: 462
A9: 2011-01-07 | B9: Carlota | C9: MidWest | D9: Franks | E9: HHH | F9: 12 | G9: 132 | H9: 276
A10: 2011-01-05 | B10: Carlota | C10: West | D10: Franks | E10: ITTW | F10: 60 | G10: 660 | H10: 1380
A11: 2011-01-17 | B11: Quad | C11: East | D11: Franks | E11: HII | F11: 62 | G11: 899 | H11: 1674
A12: 2011-01-28 | B12: Sunshine | C12: South | D12: Smith | E12: FRED | F12: 51 | G12: 408 | H12: 969
A13: 2011-01-17 | B13: Quad | C13: East | D13: Gault | E13: SFWK | F13: 43 | G13: 623.5 | H13: 1161
A14: 2011-01-16 | B14: Bellen | C14: MidWest | D14: Sioux | E14: YTR | F14: 56 | G14: 560 | H14: 1232
A15: 2011-01-15 | B15: Sunshine | C15: MidWest | D15: Chin | E15: YTR | F15: 11 | G15: 88 | H15: 209
A16: 2011-01-12 | B16: Bellen | C16: South | D16: Chin | E16: WT | F16: 7 | G16: 70 | H16: 154
A17: 2011-01-03 | B17: Sunset | C17: South | D17: Pham | E17: WSD | F17: 23 | G17: 212.75 | H17: 483
A18: 2011-01-22 | B18: Carlota | C18: South | D18: Smith | E18: KBTB | F18: 29 | G18: 319 | H18: 667
A19: 2011-01-21 | B19: Quad | C19: West | D19: Gault | E19: ITW | F19: 56 | G19: 812 | H19: 1512
A20: 2011-01-13 | B20: Sunshine | C20: MidWest | D20: Pham | E20: PSA | F20: 33 | G20: 264 | H20: 627
A21: 2011-01-10 | B21: Quad | C21: West | D21: Smith | E21: KBTB | F21: 65 | G21: 942.5 | H21: 1755
A22: 2011-01-08 | B22: Quad | C22: West | D22: Chin | E22: HII | F22: 16 | G22: 232 | H22: 432
A23: 2011-01-06 | B23: Quad | C23: West | D23: Sioux | E23: PCC | F23: 64 | G23: 928 | H23: 1728
A24: 2011-01-26 | B24: Sunset | C24: South | D24: Sioux | E24: DFGH | F24: 44 | G24: 407 | H24: 924
A25: 2011-01-21 | B25: Sunshine | C25: MidWest | D25: Smith | E25: QT | F25: 64 | G25: 512 | H25: 1216
A26: 2011-01-07 | B26: Bellen | C26: West | D26: Smith | E26: T | F26: 27 | G26: 270 | H26: 594
A27: 2011-01-20 | B27: Bellen | C27: East | D27: Gault | E27: PSA | F27: 10 | G27: 100 | H27: 220
A28: 2011-01-09 | B28: Bellen | C28: South | D28: Chin | E28: WSD | F28: 26 | G28: 260 | H28: 572
A29: 2011-01-07 | B29: Sunset | C29: MidWest | D29: Smith | E29: PCC | F29: 22 | G29: 203.5 | H29: 462
A30: 2011-01-29 | B30: Bellen | C30: East | D30: Chin | E30: AST | F30: 50 | G30: 500 | H30: 1100
A31: 2011-01-30 | B31: Sunshine | C31: South | D31: Sioux | E31: TTT | F31: 23 | G31: 184 | H31: 437
A32: 2011-01-30 | B32: Sunshine | C32: West | D32: Gault | E32: DFR | F32: 49 | G32: 392 | H32: 931
A33: 2011-01-28 | B33: Carlota | C33: West | D33: Smith | E33: LOP | F33: 15 | G33: 165 | H33: 345
A34: 2011-01-01 | B34: Quad | C34: East | D34: Sioux | E34: AA | F34: 16 | G34: 232 | H34: 432
A35: 2011-01-30 | B35: Quad | C35: South | D35: Sioux | E35: TTT | F35: 25 | G35: 362.5 | H35: 675
A36: 2011-01-16 | B36: Carlota | C36: South | D36: Smith | E36: QT | F36: 31 | G36: 341 | H36: 713
A37: 2011-01-24 | B37: Quad | C37: West | D37: Gault | E37: HII | F37: 63 | G37: 913.5 | H37: 1701
A38: 2011-01-25 | B38: Sunshine | C38: MidWest | D38: Franks | E38: JAQ | F38: 21 | G38: 168 | H38: 399
A39: 2011-01-21 | B39: Sunshine | C39: MidWest | D39: Pham | E39: DFR | F39: 23 | G39: 184 | H39: 437
A40: 2011-01-18 | B40: Bellen | C40: East | D40: Pham | E40: DFR | F40: 59 | G40: 590 | H40: 1298
A41: 2011-01-13 | B41: Bellen | C41: MidWest | D41: Pham | E41: PLOT | F41: 57 | G41: 570 | H41: 1254
A42: 2011-01-21 | B42: Quad | C42: East | D42: Chin | E42: FM | F42: 58 | G42: 841 | H42: 1566
A43: 2011-01-09 | B43: Sunshine | C43: East | D43: Smith | E43: PCC | F43: 42 | G43: 336 | H43: 798
A44: 2011-01-09 | B44: Bellen | C44: South | D44: Sioux | E44: QT | F44: 15 | G44: 150 | H44: 330
A45: 2011-01-27 | B45: Carlota | C45: West | D45: Gault | E45: QT | F45: 10 | G45: 110 | H45: 230
A46: 2011-01-06 | B46: Carlota | C46: West | D46: Sioux | E46: KPSA | F46: 18 | G46: 198 | H46: 414
A47: 2011-01-10 | B47: Sunset | C47: East | D47: Gault | E47: TRU | F47: 27 | G47: 249.75 | H47: 567
A48: 2011-01-21 | B48: Sunset | C48: South | D48: Pham | E48: HHH | F48: 13 | G48: 120.25 | H48: 273
A49: 2011-01-22 | B49: Bellen | C49: West | D49: Sioux | E49: YTR | F49: 35 | G49: 350 | H49: 770
A50: 2011-01-03 | B50: Sunshine | C50: East | D50: Pham | E50: FM | F50: 38 | G50: 304 | H50: 722
A51: 2011-01-10 | B51: Carlota | C51: East | D51: Pham | E51: AA | F51: 63 | G51: 693 | H51: 1449
A52: 2011-01-22 | B52: Quad | C52: South | D52: Franks | E52: FM | F52: 29 | G52: 420.5 | H52: 783
A53: 2011-01-28 | B53: Sunset | C53: East | D53: Smith | E53: ZAT | F53: 36 | G53: 333 | H53: 756
A54: 2011-01-10 | B54: Quad | C54: East | D54: Smith | E54: DFR | F54: 17 | G54: 246.5 | H54: 459
A55: 2011-01-17 | B55: Bellen | C55: MidWest | D55: Smith | E55: PCC | F55: 16 | G55: 160 | H55: 352
A56: 2011-01-20 | B56: Sunshine | C56: West | D56: Sioux | E56: YTR | F56: 58 | G56: 464 | H56: 1102
A57: 2011-01-18 | B57: Bellen | C57: East | D57: Franks | E57: DFGH | F57: 20 | G57: 200 | H57: 440
A58: 2011-01-13 | B58: Bellen | C58: MidWest | D58: Pham | E58: PSA | F58: 40 | G58: 400 | H58: 880
A59: 2011-01-14 | B59: Carlota | C59: East | D59: Franks | E59: JAQ | F59: 34 | G59: 374 | H59: 782
A60: 2011-01-17 | B60: Quad | C60: MidWest | D60: Chin | E60: EPP | F60: 61 | G60: 884.5 | H60: 1647
A61: 2011-01-12 | B61: Sunset | C61: MidWest | D61: Gault | E61: ITW | F61: 19 | G61: 175.75 | H61: 399
A62: 2011-01-06 | B62: Sunshine | C62: South | D62: Smith | E62: QT | F62: 40 | G62: 320 | H62: 760
A63: 2011-01-19 | B63: Bellen | C63: South | D63: Sioux | E63: T | F63: 35 | G63: 350 | H63: 770
A64: 2011-01-26 | B64: Bellen | C64: East | D64: Chin | E64: KPSA | F64: 17 | G64: 170 | H64: 374
A65: 2011-01-05 | B65: Sunset | C65: South | D65: Pham | E65: TTT | F65: 57 | G65: 527.25 | H65: 1197
A66: 2011-01-28 | B66: Carlota | C66: South | D66: Franks | E66: MNGD | F66: 46 | G66: 506 | H66: 1058
A67: 2011-01-10 | B67: Sunshine | C67: South | D67: Chin | E67: TRU | F67: 30 | G67: 240 | H67: 570
A68: 2011-01-07 | B68: Sunset | C68: West | D68: Pham | E68: WT | F68: 53 | G68: 490.25 | H68: 1113
A69: 2011-01-28 | B69: Quad | C69: MidWest | D69: Smith | E69: YTR | F69: 42 | G69: 609 | H69: 1134
A70: 2011-01-02 | B70: Quad | C70: West | D70: Pham | E70: AST | F70: 30 | G70: 435 | H70: 810
A71: 2011-01-15 | B71: Sunset | C71: East | D71: Gault | E71: AST | F71: 63 | G71: 582.75 | H71: 1323
A72: 2011-01-10 | B72: Sunset | C72: East | D72: Smith | E72: MBG | F72: 17 | G72: 157.25 | H72: 357
A73: 2011-01-23 | B73: Quad | C73: East | D73: Pham | E73: WT | F73: 22 | G73: 319 | H73: 594
A74: 2011-01-06 | B74: Sunshine | C74: East | D74: Franks | E74: PSA | F74: 54 | G74: 432 | H74: 1026
A75: 2011-01-18 | B75: Carlota | C75: South | D75: Smith | E75: YTR | F75: 53 | G75: 583 | H75: 1219
A76: 2011-01-11 | B76: Quad | C76: East | D76: Smith | E76: BBT | F76: 49 | G76: 710.5 | H76: 1323
A77: 2011-01-21 | B77: Bellen | C77: South | D77: Smith | E77: TRU | F77: 11 | G77: 110 | H77: 242
A78: 2011-01-18 | B78: Sunset | C78: East | D78: Gault | E78: MNGD | F78: 12 | G78: 111 | H78: 252
A79: 2011-01-10 | B79: Sunshine | C79: MidWest | D79: Smith | E79: TTT | F79: 8 | G79: 64 | H79: 152
A80: 2011-01-17 | B80: Sunshine | C80: MidWest | D80: Franks | E80: HHH | F80: 59 | G80: 472 | H80: 1121
A81: 2011-01-23 | B81: Sunshine | C81: South | D81: Chin | E81: T | F81: 49 | G81: 392 | H81: 931
A82: 2011-01-23 | B82: Quad | C82: East | D82: Franks | E82: PCC | F82: 44 | G82: 638 | H82: 1188
A83: 2011-01-28 | B83: Sunset | C83: West | D83: Chin | E83: FM | F83: 62 | G83: 573.5 | H83: 1302
A84: 2011-01-29 | B84: Quad | C84: MidWest | D84: Gault | E84: PLOT | F84: 10 | G84: 145 | H84: 270
A85: 2011-01-13 | B85: Carlota | C85: South | D85: Smith | E85: FM | F85: 52 | G85: 572 | H85: 1196
A86: 2011-01-18 | B86: Quad | C86: MidWest | D86: Smith | E86: PLOT | F86: 17 | G86: 246.5 | H86: 459
A87: 2011-01-04 | B87: Sunset | C87: MidWest | D87: Sioux | E87: BBT | F87: 29 | G87: 268.25 | H87: 609
A88: 2011-01-28 | B88: Bellen | C88: South | D88: Sioux | E88: QT | F88: 25 | G88: 250 | H88: 550
A89: 2011-01-11 | B89: Quad | C89: East | D89: Franks | E89: ITW | F89: 14 | G89: 203 | H89: 378
A90: 2011-01-22 | B90: Bellen | C90: West | D90: Pham | E90: AST | F90: 53 | G90: 530 | H90: 1166
A91: 2011-01-10 | B91: Sunset | C91: South | D91: Sioux | E91: MBG | F91: 47 | G91: 434.75 | H91: 987
A92: 2011-01-24 | B92: Carlota | C92: MidWest | D92: Franks | E92: BBT | F92: 13 | G92: 143 | H92: 299
A93: 2011-01-05 | B93: Sunshine | C93: West | D93: Franks | E93: ET | F93: 12 | G93: 96 | H93: 228
A94: 2011-01-03 | B94: Carlota | C94: MidWest | D94: Chin | E94: FM | F94: 20 | G94: 220 | H94: 460
A95: 2011-01-09 | B95: Bellen | C95: East | D95: Pham | E95: EPP | F95: 40 | G95: 400 | H95: 880
A96: 2011-01-23 | B96: Bellen | C96: East | D96: Gault | E96: DFGH | F96: 9 | G96: 90 | H96: 198
A97: 2011-01-09 | B97: Carlota | C97: East | D97: Franks | E97: WSD | F97: 38 | G97: 418 | H97: 874
A98: 2011-01-02 | B98: Bellen | C98: South | D98: Gault | E98: KBTB | F98: 24 | G98: 240 | H98: 528
A99: 2011-01-17 | B99: Quad | C99: West | D99: Chin | E99: TTT | F99: 10 | G99: 145 | H99: 270
A100: 2011-01-28 | B100: Quad | C100: South | D100: Gault | E100: KBTB | F100: 56 | G100: 812 | H100: 1512
A101: 2011-01-18 | B101: Sunshine | C101: MidWest | D101: Chin | E101: LOP | F101: 62 | G101: 496 | H101: 1178
A102: 2011-01-28 | B102: Quad | C102: South | D102: Franks | E102: YTR | F102: 44 | G102: 638 | H102: 1188
A103: 2011-01-17 | B103: Carlota | C103: East | D103: Sioux | E103: GRR | F103: 39 | G103: 429 | H103: 897
A104: 2011-01-18 | B104: Sunshine | C104: East | D104: Franks | E104: AA | F104: 24 | G104: 192 | H104: 456
A105: 2011-01-22 | B105: Bellen | C105: West | D105: Smith | E105: WT | F105: 6 | G105: 60 | H105: 132
A106: 2011-01-02 | B106: Bellen | C106: West | D106: Pham | E106: SFWK | F106: 19 | G106: 190 | H106: 418
H108: Category Lower Limit | I108: Sales Category
H109: 0 | I109: Subpar
H110: 100 | I110: OK
H111: 500 | I111: Good
H112: 750 | I112: Great
H113: 1000 | I113: Exceptional

Sheet V(5an)
A1: Date | B1: Product | C1: Region | D1: SalesRep | E1: Customer | F1: Units | G1: COGS | H1: Sales | I1: Sales Category
A2: 2011-01-26 | B2: Bellen | C2: West | D2: Pham | E2: FRED | F2: 7 | G2: 70 | H2: 154 | I2: =VLOOKUP(H2,$H$109:$I$113,2) -> OK
A3: 2011-01-10 | B3: Bellen | C3: MidWest | D3: Gault | E3: FM | F3: 61 | G3: 610 | H3: 1342 | I3: =VLOOKUP(H3,$H$109:$I$113,2) -> Exceptional
A4: 2011-01-03 | B4: Sunshine | C4: South | D4: Sioux | E4: DDH | F4: 6 | G4: 48 | H4: 114 | I4: OK
A5: 2011-01-07 | B5: Sunset | C5: West | D5: Pham | E5: T | F5: 61 | G5: 564.25 | H5: 1281 | I5: Exceptional
A6: 2011-01-18 | B6: Sunshine | C6: West | D6: Sioux | E6: AST | F6: 8 | G6: 64 | H6: 152 | I6: OK
A7: 2011-01-20 | B7: Carlota | C7: East | D7: Chin | E7: ET | F7: 59 | G7: 649 | H7: 1357 | I7: Exceptional
A8: 2011-01-26 | B8: Bellen | C8: MidWest | D8: Gault | E8: PSA | F8: 21 | G8: 210 | H8: 462 | I8: OK
A9: 2011-01-07 | B9: Carlota | C9: MidWest | D9: Franks | E9: HHH | F9: 12 | G9: 132 | H9: 276 | I9: OK
A10: 2011-01-05 | B10: Carlota | C10: West | D10: Franks | E10: ITTW | F10: 60 | G10: 660 | H10: 1380 | I10: Exceptional
A11: 2011-01-17 | B11: Quad | C11: East | D11: Franks | E11: HII | F11: 62 | G11: 899 | H11: 1674 | I11: Exceptional
A12: 2011-01-28 | B12: Sunshine | C12: South | D12: Smith | E12: FRED | F12: 51 | G12: 408 | H12: 969 | I12: Great
A13: 2011-01-17 | B13: Quad | C13: East | D13: Gault | E13: SFWK | F13: 43 | G13: 623.5 | H13: 1161 | I13: Exceptional
A14: 2011-01-16 | B14: Bellen | C14: MidWest | D14: Sioux | E14: YTR | F14: 56 | G14: 560 | H14: 1232 | I14: Exceptional
A15: 2011-01-15 | B15: Sunshine | C15: MidWest | D15: Chin | E15: YTR | F15: 11 | G15: 88 | H15: 209 | I15: OK
A16: 2011-01-12 | B16: Bellen | C16: South | D16: Chin | E16: WT | F16: 7 | G16: 70 | H16: 154 | I16: OK
A17: 2011-01-03 | B17: Sunset | C17: South | D17: Pham | E17: WSD | F17: 23 | G17: 212.75 | H17: 483 | I17: OK
A18: 2011-01-22 | B18: Carlota | C18: South | D18: Smith | E18: KBTB | F18: 29 | G18: 319 | H18: 667 | I18: Good
A19: 2011-01-21 | B19: Quad | C19: West | D19: Gault | E19: ITW | F19: 56 | G19: 812 | H19: 1512 | I19: Exceptional
A20: 2011-01-13 | B20: Sunshine | C20: MidWest | D20: Pham | E20: PSA | F20: 33 | G20: 264 | H20: 627 | I20: Good
A21: 2011-01-10 | B21: Quad | C21: West | D21: Smith | E21: KBTB | F21: 65 | G21: 942.5 | H21: 1755 | I21: Exceptional
A22: 2011-01-08 | B22: Quad | C22: West | D22: Chin | E22: HII | F22: 16 | G22: 232 | H22: 432 | I22: OK
A23: 2011-01-06 | B23: Quad | C23: West | D23: Sioux | E23: PCC | F23: 64 | G23: 928 | H23: 1728 | I23: Exceptional
A24: 2011-01-26 | B24: Sunset | C24: South | D24: Sioux | E24: DFGH | F24: 44 | G24: 407 | H24: 924 | I24: Great
A25: 2011-01-21 | B25: Sunshine | C25: MidWest | D25: Smith | E25: QT | F25: 64 | G25: 512 | H25: 1216 | I25: Exceptional
A26: 2011-01-07 | B26: Bellen | C26: West | D26: Smith | E26: T | F26: 27 | G26: 270 | H26: 594 | I26: Good
A27: 2011-01-20 | B27: Bellen | C27: East | D27: Gault | E27: PSA | F27: 10 | G27: 100 | H27: 220 | I27: OK
A28: 2011-01-09 | B28: Bellen | C28: South | D28: Chin | E28: WSD | F28: 26 | G28: 260 | H28: 572 | I28: Good
A29: 2011-01-07 | B29: Sunset | C29: MidWest | D29: Smith | E29: PCC | F29: 22 | G29: 203.5 | H29: 462 | I29: OK
A30: 2011-01-29 | B30: Bellen | C30: East | D30: Chin | E30: AST | F30: 50 | G30: 500 | H30: 1100 | I30: Exceptional
A31: 2011-01-30 | B31: Sunshine | C31: South | D31: Sioux | E31: TTT | F31: 23 | G31: 184 | H31: 437 | I31: OK
A32: 2011-01-30 | B32: Sunshine | C32: West | D32: Gault | E32: DFR | F32: 49 | G32: 392 | H32: 931 | I32: Great
A33: 2011-01-28 | B33: Carlota | C33: West | D33: Smith | E33: LOP | F33: 15 | G33: 165 | H33: 345 | I33: OK
A34: 2011-01-01 | B34: Quad | C34: East | D34: Sioux | E34: AA | F34: 16 | G34: 232 | H34: 432 | I34: OK
A35: 2011-01-30 | B35: Quad | C35: South | D35: Sioux | E35: TTT | F35: 25 | G35: 362.5 | H35: 675 | I35: Good
A36: 2011-01-16 | B36: Carlota | C36: South | D36: Smith | E36: QT | F36: 31 | G36: 341 | H36: 713 | I36: Good
A37: 2011-01-24 | B37: Quad | C37: West | D37: Gault | E37: HII | F37: 63 | G37: 913.5 | H37: 1701 | I37: Exceptional
A38: 2011-01-25 | B38: Sunshine | C38: MidWest | D38: Franks | E38: JAQ | F38: 21 | G38: 168 | H38: 399 | I38: OK
A39: 2011-01-21 | B39: Sunshine | C39: MidWest | D39: Pham | E39: DFR | F39: 23 | G39: 184 | H39: 437 | I39: OK
A40: 2011-01-18 | B40: Bellen | C40: East | D40: Pham | E40: DFR | F40: 59 | G40: 590 | H40: 1298 | I40: Exceptional
A41: 2011-01-13 | B41: Bellen | C41: MidWest | D41: Pham | E41: PLOT | F41: 57 | G41: 570 | H41: 1254 | I41: Exceptional
A42: 2011-01-21 | B42: Quad | C42: East | D42: Chin | E42: FM | F42: 58 | G42: 841 | H42: 1566 | I42: Exceptional
A43: 2011-01-09 | B43: Sunshine | C43: East | D43: Smith | E43: PCC | F43: 42 | G43: 336 | H43: 798 | I43: Great
A44: 2011-01-09 | B44: Bellen | C44: South | D44: Sioux | E44: QT | F44: 15 | G44: 150 | H44: 330 | I44: OK
A45: 2011-01-27 | B45: Carlota | C45: West | D45: Gault | E45: QT | F45: 10 | G45: 110 | H45: 230 | I45: OK
A46: 2011-01-06 | B46: Carlota | C46: West | D46: Sioux | E46: KPSA | F46: 18 | G46: 198 | H46: 414 | I46: OK
A47: 2011-01-10 | B47: Sunset | C47: East | D47: Gault | E47: TRU | F47: 27 | G47: 249.75 | H47: 567 | I47: Good
A48: 2011-01-21 | B48: Sunset | C48: South | D48: Pham | E48: HHH | F48: 13 | G48: 120.25 | H48: 273 | I48: OK
A49: 2011-01-22 | B49: Bellen | C49: West | D49: Sioux | E49: YTR | F49: 35 | G49: 350 | H49: 770 | I49: Great
A50: 2011-01-03 | B50: Sunshine | C50: East | D50: Pham | E50: FM | F50: 38 | G50: 304 | H50: 722 | I50: Good
A51: 2011-01-10 | B51: Carlota | C51: East | D51: Pham | E51: AA | F51: 63 | G51: 693 | H51: 1449 | I51: Exceptional
A52: 2011-01-22 | B52: Quad | C52: South | D52: Franks | E52: FM | F52: 29 | G52: 420.5 | H52: 783 | I52: Great
A53: 2011-01-28 | B53: Sunset | C53: East | D53: Smith | E53: ZAT | F53: 36 | G53: 333 | H53: 756 | I53: Great
A54: 2011-01-10 | B54: Quad | C54: East | D54: Smith | E54: DFR | F54: 17 | G54: 246.5 | H54: 459 | I54: OK
A55: 2011-01-17 | B55: Bellen | C55: MidWest | D55: Smith | E55: PCC | F55: 16 | G55: 160 | H55: 352 | I55: OK
A56: 2011-01-20 | B56: Sunshine | C56: West | D56: Sioux | E56: YTR | F56: 58 | G56: 464 | H56: 1102 | I56: Exceptional
A57: 2011-01-18 | B57: Bellen | C57: East | D57: Franks | E57: DFGH | F57: 20 | G57: 200 | H57: 440 | I57: OK
A58: 2011-01-13 | B58: Bellen | C58: MidWest | D58: Pham | E58: PSA | F58: 40 | G58: 400 | H58: 880 | I58: Great
A59: 2011-01-14 | B59: Carlota | C59: East | D59: Franks | E59: JAQ | F59: 34 | G59: 374 | H59: 782 | I59: Great
A60: 2011-01-17 | B60: Quad | C60: MidWest | D60: Chin | E60: EPP | F60: 61 | G60: 884.5 | H60: 1647 | I60: Exceptional
A61: 2011-01-12 | B61: Sunset | C61: MidWest | D61: Gault | E61: ITW | F61: 19 | G61: 175.75 | H61: 399 | I61: OK
A62: 2011-01-06 | B62: Sunshine | C62: South | D62: Smith | E62: QT | F62: 40 | G62: 320 | H62: 760 | I62: Great
A63: 2011-01-19 | B63: Bellen | C63: South | D63: Sioux | E63: T | F63: 35 | G63: 350 | H63: 770 | I63: Great
A64: 2011-01-26 | B64: Bellen | C64: East | D64: Chin | E64: KPSA | F64: 17 | G64: 170 | H64: 374 | I64: OK
A65: 2011-01-05 | B65: Sunset | C65: South | D65: Pham | E65: TTT | F65: 57 | G65: 527.25 | H65: 1197 | I65: Exceptional
A66: 2011-01-28 | B66: Carlota | C66: South | D66: Franks | E66: MNGD | F66: 46 | G66: 506 | H66: 1058 | I66: Exceptional
A67: 2011-01-10 | B67: Sunshine | C67: South | D67: Chin | E67: TRU | F67: 30 | G67: 240 | H67: 570 | I67: =VLOOKUP(H67,$H$109:$I$113,2) -> Good
A68: 2011-01-07 | B68: Sunset | C68: West | D68: Pham | E68: WT | F68: 53 | G68: 490.25 | H68: 1113 | I68: Exceptional
A69: 2011-01-28 | B69: Quad | C69: MidWest | D69: Smith | E69: YTR | F69: 42 | G69: 609 | H69: 1134 | I69: Exceptional
A70: 2011-01-02 | B70: Quad | C70: West | D70: Pham | E70: AST | F70: 30 | G70: 435 | H70: 810 | I70: Great
A71: 2011-01-15 | B71: Sunset | C71: East | D71: Gault | E71: AST | F71: 63 | G71: 582.75 | H71: 1323 | I71: Exceptional
A72: 2011-01-10 | B72: Sunset | C72: East | D72: Smith | E72: MBG | F72: 17 | G72: 157.25 | H72: 357 | I72: OK
A73: 2011-01-23 | B73: Quad | C73: East | D73: Pham | E73: WT | F73: 22 | G73: 319 | H73: 594 | I73: Good
A74: 2011-01-06 | B74: Sunshine | C74: East | D74: Franks | E74: PSA | F74: 54 | G74: 432 | H74: 1026 | I74: Exceptional
A75: 2011-01-18 | B75: Carlota | C75: South | D75: Smith | E75: YTR | F75: 53 | G75: 583 | H75: 1219 | I75: Exceptional
A76: 2011-01-11 | B76: Quad | C76: East | D76: Smith | E76: BBT | F76: 49 | G76: 710.5 | H76: 1323 | I76: Exceptional
A77: 2011-01-21 | B77: Bellen | C77: South | D77: Smith | E77: TRU | F77: 11 | G77: 110 | H77: 242 | I77: OK
A78: 2011-01-18 | B78: Sunset | C78: East | D78: Gault | E78: MNGD | F78: 12 | G78: 111 | H78: 252 | I78: OK
A79: 2011-01-10 | B79: Sunshine | C79: MidWest | D79: Smith | E79: TTT | F79: 8 | G79: 64 | H79: 152 | I79: OK
A80: 2011-01-17 | B80: Sunshine | C80: MidWest | D80: Franks | E80: HHH | F80: 59 | G80: 472 | H80: 1121 | I80: Exceptional
A81: 2011-01-23 | B81: Sunshine | C81: South | D81: Chin | E81: T | F81: 49 | G81: 392 | H81: 931 | I81: Great
A82: 2011-01-23 | B82: Quad | C82: East | D82: Franks | E82: PCC | F82: 44 | G82: 638 | H82: 1188 | I82: Exceptional
A83: 2011-01-28 | B83: Sunset | C83: West | D83: Chin | E83: FM | F83: 62 | G83: 573.5 | H83: 1302 | I83: Exceptional
A84: 2011-01-29 | B84: Quad | C84: MidWest | D84: Gault | E84: PLOT | F84: 10 | G84: 145 | H84: 270 | I84: OK
A85: 2011-01-13 | B85: Carlota | C85: South | D85: Smith | E85: FM | F85: 52 | G85: 572 | H85: 1196 | I85: Exceptional
A86: 2011-01-18 | B86: Quad | C86: MidWest | D86: Smith | E86: PLOT | F86: 17 | G86: 246.5 | H86: 459 | I86: OK
A87: 2011-01-04 | B87: Sunset | C87: MidWest | D87: Sioux | E87: BBT | F87: 29 | G87: 268.25 | H87: 609 | I87: Good
A88: 2011-01-28 | B88: Bellen | C88: South | D88: Sioux | E88: QT | F88: 25 | G88: 250 | H88: 550 | I88: Good
A89: 2011-01-11 | B89: Quad | C89: East | D89: Franks | E89: ITW | F89: 14 | G89: 203 | H89: 378 | I89: OK
A90: 2011-01-22 | B90: Bellen | C90: West | D90: Pham | E90: AST | F90: 53 | G90: 530 | H90: 1166 | I90: Exceptional
A91: 2011-01-10 | B91: Sunset | C91: South | D91: Sioux | E91: MBG | F91: 47 | G91: 434.75 | H91: 987 | I91: Great
A92: 2011-01-24 | B92: Carlota | C92: MidWest | D92: Franks | E92: BBT | F92: 13 | G92: 143 | H92: 299 | I92: OK
A93: 2011-01-05 | B93: Sunshine | C93: West | D93: Franks | E93: ET | F93: 12 | G93: 96 | H93: 228 | I93: OK
A94: 2011-01-03 | B94: Carlota | C94: MidWest | D94: Chin | E94: FM | F94: 20 | G94: 220 | H94: 460 | I94: OK
A95: 2011-01-09 | B95: Bellen | C95: East | D95: Pham | E95: EPP | F95: 40 | G95: 400 | H95: 880 | I95: Great
A96: 2011-01-23 | B96: Bellen | C96: East | D96: Gault | E96: DFGH | F96: 9 | G96: 90 | H96: 198 | I96: OK
A97: 2011-01-09 | B97: Carlota | C97: East | D97: Franks | E97: WSD | F97: 38 | G97: 418 | H97: 874 | I97: Great
A98: 2011-01-02 | B98: Bellen | C98: South | D98: Gault | E98: KBTB | F98: 24 | G98: 240 | H98: 528 | I98: Good
A99: 2011-01-17 | B99: Quad | C99: West | D99: Chin | E99: TTT | F99: 10 | G99: 145 | H99: 270 | I99: OK
A100: 2011-01-28 | B100: Quad | C100: South | D100: Gault | E100: KBTB | F100: 56 | G100: 812 | H100: 1512 | I100: Exceptional
A101: 2011-01-18 | B101: Sunshine | C101: MidWest | D101: Chin | E101: LOP | F101: 62 | G101: 496 | H101: 1178 | I101: Exceptional
A102: 2011-01-28 | B102: Quad | C102: South | D102: Franks | E102: YTR | F102: 44 | G102: 638 | H102: 1188 | I102: Exceptional
A103: 2011-01-17 | B103: Carlota | C103: East | D103: Sioux | E103: GRR | F103: 39 | G103: 429 | H103: 897 | I103: Great
A104: 2011-01-18 | B104: Sunshine | C104: East | D104: Franks | E104: AA | F104: 24 | G104: 192 | H104: 456 | I104: OK
A105: 2011-01-22 | B105: Bellen | C105: West | D105: Smith | E105: WT | F105: 6 | G105: 60 | H105: 132 | I105: OK
A106: 2011-01-02 | B106: Bellen | C106: West | D106: Pham | E106: SFWK | F106: 19 | G106: 190 | H106: 418 | I106: OK
H108: Category Lower Limit | I108: Sales Category
H109: 0 | I109: Subpar
H110: 100 | I110: OK
H111: 500 | I111: Good
H112: 750 | I112: Great
H113: 1000 | I113: Exceptional

Sheet V(6)
A1: Product | B1: Supplier | C1: Price | E1: Product | F1: Price
A2: Flying Eagle | B2: Channel Craft | C2: 19
A3: V Range | B3: Colordao | C3: 18
A4: Quad | B4: Gel Boom | C4: 40
A5: Bellen | B5: Gel Boom | C5: 25
A6: Carlota | B6: Gel Boom | C6: 24
A8: Click on this link to see more about the VLOOKUP function:
A9: VLOOKUP Function Beginner to Advanced 26 Examples: How To Use Excel VLOOKUP Function
A10: http://www.youtube.com/watch?v=-hJxIMBbmZY

Sheet V(6an)
A1: Product | B1: Supplier | C1: Price | E1: Product | F1: Price
A2: Flying Eagle | B2: Channel Craft | C2: 19 | E2: Bellen | F2: =VLOOKUP(E2,A2:C6,3,0) -> 25
A3: V Range | B3: Colordao | C3: 18
A4: Quad | B4: Gel Boom | C4: 40
A5: Bellen | B5: Gel Boom | C5: 25
A6: Carlota | B6: Gel Boom | C6: 24
A8: Click on this link to see more about the VLOOKUP function:
A9: VLOOKUP Function Beginner to Advanced 26 Examples: How To Use Excel VLOOKUP Function
A10: http://www.youtube.com/watch?v=-hJxIMBbmZY

Sheet V(7)
A1: Invoice
A2: Fly High Boomerangs
A4: Sell To: | C4: Invoice # | D4: 1255
A5: Kite Flight | C5: Date | D5: 2013-11-11
A6: 1414 43rd Ave.
A7: Watermore
A9: Item purchased | B9: Quantity | C9: Price Each | D9: Line Item Total
A10: Quad | B10: 15
A11: Majestic Beaut | B11: 10
A12: Bellen | B12: 25
C15: Subtotal | D15: =SUM(D10:D14) -> 0
A16: Shipping Terms: | B16: Shipping Point | C16: Shipping | D16: 15
A17: Terms: | B17: 2/15, 1/30, net 45 | C17: Invoice Total | D17: =SUM(D15:D16) -> 15
A19: Boomerangs Available | B19: Wholesale Cost
A20: Quad | B20: =C50 -> 17.24
A21: Bellen | B21: 13.89
A22: Carlota | B22: 9.88
A23: Carlota Doublers | B23: 29.09
A24: Majestic Beaut | B24: 11.02
A25: Sunshine 5 Ply | B25: 7.7
A26: Sunshine 10 Ply | B26: 10.25
A27: Sunset | B27: 11.75
A28: Sunbell | B28: 14.55
A29: Flattop | B29: 12.36
A30: Bellen Dancer | B30: 14.08
A31: Bellen Wind Dancer | B31: 15.16
A32: GelFast | B32: 12.9
A33: Phenolic Sunshine | B33: 15.62
A34: Icarus MTA | B34: 18.68
A49: List Price | B49: Trade Discount % | C49: Net Cost (Wholesale Cost)
A50: 30.25 | B50: 0.43 | C50: =ROUND(A50*(1-B50),2) -> 17.24
A51: 25.25 | B51: 0.45 | C51: 13.89
A52: 21.95 | B52: 0.55 | C52: 9.88
A53: 55.95 | B53: 0.48 | C53: 29.09
A54: 23.95 | B54: 0.54 | C54: 11.02
A55: 19.25 | B55: 0.6 | C55: 7.7
A56: 20.5 | B56: 0.5 | C56: 10.25
A57: 23.5 | B57: 0.5 | C57: 11.75
A58: 26.95 | B58: 0.46 | C58: 14.55
A59: 20.95 | B59: 0.41 | C59: 12.36
A60: 29.95 | B60: 0.53 | C60: 14.08
A61: 32.25 | B61: 0.53 | C61: 15.16
A62: 21.5 | B62: 0.4 | C62: 12.9
A63: 35.5 | B63: 0.56 | C63: 15.62
A64: 35.25 | B64: 0.47 | C64: 18.68

Sheet V(7an)
A1: Invoice
A2: Fly High Boomerangs
A4: Sell To: | C4: Invoice # | D4: 1255
A5: Kite Flight | C5: Date | D5: 2013-11-11
A6: 1414 43rd Ave.
A7: Watermore
A9: Item purchased | B9: Quantity | C9: Price Each | D9: Line Item Total | G9: Price Each | H9: Line Item Total
A10: Carlota | B10: 25 | C10: =_xlfn.IFNA(VLOOKUP(A10,$A$20:$B$34,2,0),"") -> 9.88 | D10: =IFERROR(ROUND(C10*B10,2),"") -> 247 | G10: =IF(ISNUMBER(B10),VLOOKUP(A10,$A$20:$B$34,2,0),"") -> 9.88 | H10: =IF(C10="","",ROUND(B10*C10,2)) -> 247
C11: =_xlfn.IFNA(VLOOKUP(A11,$A$20:$B$34,2,0),"") ->  | D11: =IFERROR(ROUND(C11*B11,2),"") ->  | G11: =IF(ISNUMBER(B11),VLOOKUP(A11,$A$20:$B$34,2,0),"") ->  | H11: =IF(C11="","",ROUND(B11*C11,2)) -> 
F12: Earlier versions: >>>>>>>
C15: Subtotal | D15: =SUM(D10:D14) -> 247
A16: Shipping Terms: | B16: Shipping Point | C16: Shipping | D16: 15
A17: Terms: | B17: 2/15, 1/30, net 45 | C17: Invoice Total | D17: =SUM(D15:D16) -> 262
A19: Boomerangs Available | B19: Wholesale Cost
A20: Quad | B20: =C50 -> 17.24
A21: Bellen | B21: 13.89
A22: Carlota | B22: 9.88
A23: Carlota Doublers | B23: 29.09
A24: Majestic Beaut | B24: 11.02
A25: Sunshine 5 Ply | B25: 7.7
A26: Sunshine 10 Ply | B26: 10.25
A27: Sunset | B27: 11.75
A28: Sunbell | B28: 14.55
A29: Flattop | B29: 12.36
A30: Bellen Dancer | B30: 14.08
A31: Bellen Wind Dancer | B31: 15.16
A32: GelFast | B32: 12.9
A33: Phenolic Sunshine | B33: 15.62
A34: Icarus MTA | B34: 18.68
A49: List Price | B49: Trade Discount % | C49: Net Cost (Wholesale Cost)
A50: 30.25 | B50: 0.43 | C50: =ROUND(A50*(1-B50),2) -> 17.24
A51: 25.25 | B51: 0.45 | C51: 13.89
A52: 21.95 | B52: 0.55 | C52: 9.88
A53: 55.95 | B53: 0.48 | C53: 29.09
A54: 23.95 | B54: 0.54 | C54: 11.02
A55: 19.25 | B55: 0.6 | C55: 7.7
A56: 20.5 | B56: 0.5 | C56: 10.25
A57: 23.5 | B57: 0.5 | C57: 11.75
A58: 26.95 | B58: 0.46 | C58: 14.55
A59: 20.95 | B59: 0.41 | C59: 12.36
A60: 29.95 | B60: 0.53 | C60: 14.08
A61: 32.25 | B61: 0.53 | C61: 15.16
A62: 21.5 | B62: 0.4 | C62: 12.9
A63: 35.5 | B63: 0.56 | C63: 15.62
A64: 35.25 | B64: 0.47 | C64: 18.68

Sheet HW(1)
C1: 1) Using a formula for this column, assign a sales category to each employee. | D1: 2) Using a formula for this column, Put the word "Yes" or "No" in each cell to state whether or not the employee got the bonus | E1: 3) Using a formula for this column, put the bonus amount that each employee earned in each cell.
A3: Employee | B3: Sales | C3: Sales Category | D3: Bonus Yes/No? | E3: Bonus Amount | G3: Sales | H3: =C3 -> Sales Category
A4: Felipe Truscott | B4: 9181 | G4: 0 | H4: Poor
A5: Johnathan Godlewski | B5: 7827 | G5: 7500 | H5: Good
A6: Johnathan Iannone | B6: 6477 | G6: 10000 | H6: Great
A7: Cathrine Beaston | B7: 9358 | G7: 12500 | H7: Excellent
A8: Damon Czyz | B8: 14915
A9: Rudolph Seabaugh | B9: 8670 | G9: Bonus Hurdle | H9: 10000
A10: Felipe Gramling | B10: 12413 | G10: Bonus If Hurdle Surpassed | H10: 750
A11: Kelvin Likes | B11: 6291
A12: Rudolph Niewiadomski | B12: 6083
A13: Alton Berrey | B13: 12633
A14: Shanda Bovard | B14: 14428
A15: Bennie Margulies | B15: 9192
A16: Lashawn Vicks | B16: 6620
A17: Daniela Vadenais | B17: 8246
A18: Geoffrey Kennebeck | B18: 11769
A19: Lyn Glade | B19: 11654
A20: Shanda Lorentzen | B20: 6388
A21: Valencia Tenpenny | B21: 6134
A22: Bella Wohlenhaus | B22: 14715
A23: Adelina Fontenette | B23: 5266

Sheet HW(1an)
C1: 1) Using a formula for this column, assign a sales category to each employee. | D1: 2) Using a formula for this column, Put the word "Yes" or "No" in each cell to state whether or not the employee got the bonus | E1: 3) Using a formula for this column, put the bonus amount that each employee earned in each cell.
A3: Employee | B3: Sales | C3: Sales Category | D3: Bonus Yes/No? | E3: Bonus Amount | G3: Sales | H3: =C3 -> Sales Category
A4: Felipe Truscott | B4: 9181 | C4: =VLOOKUP(B4,$G$4:$H$7,2) -> Good | D4: =IF(B4>=H$9,"Yes","No") -> No | E4: =IF(B4>=H$9,H$10,0) -> 0 | G4: 0 | H4: Poor
A5: Johnathan Godlewski | B5: 7827 | C5: =VLOOKUP(B5,$G$4:$H$7,2) -> Good | D5: =IF(B5>=H$9,"Yes","No") -> No | E5: =IF(B5>=H$9,H$10,0) -> 0 | G5: 7500 | H5: Good
A6: Johnathan Iannone | B6: 6477 | C6: Poor | D6: No | E6: 0 | G6: 10000 | H6: Great
A7: Cathrine Beaston | B7: 9358 | C7: Good | D7: No | E7: 0 | G7: 12500 | H7: Excellent
A8: Damon Czyz | B8: 14915 | C8: Excellent | D8: Yes | E8: 750
A9: Rudolph Seabaugh | B9: 8670 | C9: Good | D9: No | E9: 0 | G9: Bonus Hurdle | H9: 10000
A10: Felipe Gramling | B10: 12413 | C10: Great | D10: Yes | E10: 750 | G10: Bonus If Hurdle Surpassed | H10: 750
A11: Kelvin Likes | B11: 6291 | C11: Poor | D11: No | E11: 0
A12: Rudolph Niewiadomski | B12: 6083 | C12: Poor | D12: No | E12: 0
A13: Alton Berrey | B13: 12633 | C13: Excellent | D13: Yes | E13: 750
A14: Shanda Bovard | B14: 14428 | C14: Excellent | D14: Yes | E14: 750
A15: Bennie Margulies | B15: 9192 | C15: Good | D15: No | E15: 0
A16: Lashawn Vicks | B16: 6620 | C16: Poor | D16: No | E16: 0
A17: Daniela Vadenais | B17: 8246 | C17: Good | D17: No | E17: 0
A18: Geoffrey Kennebeck | B18: 11769 | C18: Great | D18: Yes | E18: 750
A19: Lyn Glade | B19: 11654 | C19: Great | D19: Yes | E19: 750
A20: Shanda Lorentzen | B20: 6388 | C20: Poor | D20: No | E20: 0
A21: Valencia Tenpenny | B21: 6134 | C21: Poor | D21: No | E21: 0
A22: Bella Wohlenhaus | B22: 14715 | C22: Excellent | D22: Yes | E22: 750
A23: Adelina Fontenette | B23: 5266 | C23: Poor | D23: No | E23: 0

Sheet HW(2)
A1: In the Price Each column use the IF and VLOOKUP functions together to create formula that will lookup the price of the boomerang.
A2: In the Line Item Total column, create a formula that will multiply Price Each times Quantity.
A3: For both of these formulas, make sure that the formula shows nothing if the line in the invoice is not being used.
A5: Invoice | F5: Boomerangs Available | G5: Supplier | H5: Wholesale Cost
A6: Fly High Boomerangs | F6: Quad | G6: Gel Booms | H6: 17.24
F7: Bellen | G7: Gel Booms | H7: 13.89
A8: Sell To: | C8: Invoice # | D8: 1256 | F8: Aspen | G8: Colorado Booms | H8: 9.88
A9: Top Ten Toys | C9: Date | D9: 2013-11-12 | F9: Crested Beaut | G9: Colorado Booms | H9: 11.02
A10: North | F10: Sunset | G10: Gel Booms | H10: 11.75
A11: Seattle | F11: Sunbell | G11: Gel Booms | H11: 14.55
A13: Item purchased | B13: Quantity | C13: Price Each | D13: Line Item Total
A14: Sunset | B14: 5
A15: Sunbell | B15: 6
A16: Quad | B16: 15
C19: Subtotal | D19: =SUM(D14:D18) -> 0
A20: Shipping Terms: | B20: Shipping Point | C20: Shipping | D20: 15
A21: Terms: | B21: 1/10, net 30 | C21: Invoice Total | D21: =SUM(D19:D20) -> 15

Sheet HW(2an)
A1: In the Price Each column use the IF and VLOOKUP functions together to create formula that will lookup the price of the boomerang.
A2: In the Line Item Total column, create a formula that will multiply Price Each times Quantity.
A3: For both of these formulas, make sure that the formula shows nothing if the line in the invoice is not being used.
A5: Invoice | F5: Boomerangs Available | G5: Supplier | H5: Wholesale Cost
A6: Fly High Boomerangs | F6: Quad | G6: Gel Booms | H6: 17.24
F7: Bellen | G7: Gel Booms | H7: 13.89
A8: Sell To: | C8: Invoice # | D8: 1256 | F8: Aspen | G8: Colorado Booms | H8: 9.88
A9: Top Ten Toys | C9: Date | D9: 2013-11-12 | F9: Crested Beaut | G9: Colorado Booms | H9: 11.02
A10: North | F10: Sunset | G10: Gel Booms | H10: 11.75
A11: Seattle | F11: Sunbell | G11: Gel Booms | H11: 14.55
A13: Item purchased | B13: Quantity | C13: Price Each | D13: Line Item Total | F13: Price Each | G13: Line Item Total
A14: Sunset | B14: 5 | C14: =_xlfn.IFNA(VLOOKUP(A14,$F$6:$H$11,3,0),"") -> 11.75 | D14: =IFERROR(ROUND(B14*C14,2),"") -> 58.75 | F14: =IF(ISNUMBER(B14),VLOOKUP(A14,$F$6:$H$11,3,0),"") -> 11.75 | G14: =IF(B14="","",ROUND(C14*B14,2)) -> 58.75
A15: Sunbell | B15: 6 | C15: =_xlfn.IFNA(VLOOKUP(A15,$F$6:$H$11,3,0),"") -> 14.55 | D15: =IFERROR(ROUND(B15*C15,2),"") -> 87.3 | E15: Or >> | F15: =IF(ISNUMBER(B15),VLOOKUP(A15,$F$6:$H$11,3,0),"") -> 14.55 | G15: 87.3
A16: Quad | B16: 15 | C16: 17.24 | D16: 258.6 | F16: =IF(ISNUMBER(B16),VLOOKUP(A16,$F$6:$H$11,3,0),"") -> 17.24 | G16: =IF(B16="","",ROUND(C16*B16,2)) -> 258.6
F17: =IF(ISNUMBER(B17),VLOOKUP(A17,$F$6:$H$11,3,0),"") ->  | G17: =IF(B17="","",ROUND(C17*B17,2)) -> 
F18: =IF(ISNUMBER(B18),VLOOKUP(A18,$F$6:$H$11,3,0),"") -> 
C19: Subtotal | D19: =SUM(G14:G18) -> 404.65
A20: Shipping Terms: | B20: Shipping Point | C20: Shipping | D20: 15
A21: Terms: | B21: 1/10, net 30 | C21: Invoice Total | D21: =SUM(D19:D20) -> 419.65

Sheet HW(3)
A1: In Cell E5, create a formula that can lookup your grade.
D4: Your % Grade | E4: Your Decimal Grade:
D5: 0.895
A7: How it apears in Syllabus: | D7: How it must be setup for VLOOKUP:
A9: % Grade | B9: Decimal Grade | D9: % Grade | E9: Decimal Grade
A10: 0.94 | B10: 4 | D10: 0 | E10: 0
A11: 0.9305 | B11: 3.9 | D11: 0.6265 | E11: 0.7
A12: 0.921 | B12: 3.8 | D12: 0.636 | E12: 0.8
A13: 0.9115 | B13: 3.7 | D13: 0.6455 | E13: 0.9
A14: 0.902 | B14: 3.6 | D14: 0.655 | E14: 1
A15: 0.8925 | B15: 3.5 | D15: 0.6645 | E15: 1.1
A16: 0.883 | B16: 3.4 | D16: 0.674 | E16: 1.2
A17: 0.8735 | B17: 3.3 | D17: 0.6835 | E17: 1.3
A18: 0.864 | B18: 3.2 | D18: 0.693 | E18: 1.4
A19: 0.8545 | B19: 3.1 | D19: 0.7025 | E19: 1.5
A20: 0.845 | B20: 3 | D20: 0.712 | E20: 1.6
A21: 0.8355 | B21: 2.9 | D21: 0.7215 | E21: 1.7
A22: 0.826 | B22: 2.8 | D22: 0.731 | E22: 1.8
A23: 0.8165 | B23: 2.7 | D23: 0.7405 | E23: 1.9
A24: 0.807 | B24: 2.6 | D24: 0.75 | E24: 2
A25: 0.7975 | B25: 2.5 | D25: 0.7595 | E25: 2.1
A26: 0.788 | B26: 2.4 | D26: 0.769 | E26: 2.2
A27: 0.7785 | B27: 2.3 | D27: 0.7785 | E27: 2.3
A28: 0.769 | B28: 2.2 | D28: 0.788 | E28: 2.4
A29: 0.7595 | B29: 2.1 | D29: 0.7975 | E29: 2.5
A30: 0.75 | B30: 2 | D30: 0.807 | E30: 2.6
A31: 0.7405 | B31: 1.9 | D31: 0.8165 | E31: 2.7
A32: 0.731 | B32: 1.8 | D32: 0.826 | E32: 2.8
A33: 0.7215 | B33: 1.7 | D33: 0.8355 | E33: 2.9
A34: 0.712 | B34: 1.6 | D34: 0.845 | E34: 3
A35: 0.7025 | B35: 1.5 | D35: 0.8545 | E35: 3.1
A36: 0.693 | B36: 1.4 | D36: 0.864 | E36: 3.2
A37: 0.6835 | B37: 1.3 | D37: 0.8735 | E37: 3.3
A38: 0.674 | B38: 1.2 | D38: 0.883 | E38: 3.4
A39: 0.6645 | B39: 1.1 | D39: 0.8925 | E39: 3.5
A40: 0.655 | B40: 1 | D40: 0.902 | E40: 3.6
A41: 0.6455 | B41: 0.9 | D41: 0.9115 | E41: 3.7
A42: 0.636 | B42: 0.8 | D42: 0.921 | E42: 3.8
A43: 0.6265 | B43: 0.7 | D43: 0.9305 | E43: 3.9
A44: 0 | B44: 0 | D44: 0.94 | E44: 4

Sheet HW(3an)
A1: In Cell E5, create a formula that can lookup your grade.
D4: Your % Grade | E4: Your Decimal Grade:
D5: 0.895 | E5: =VLOOKUP(D5,$D$10:$E$44,2) -> 3.5
A7: How it apears in Syllabus: | D7: How it must be setup for VLOOKUP:
A9: % Grade | B9: Decimal Grade | D9: % Grade | E9: Decimal Grade
A10: 0.94 | B10: 4 | D10: 0 | E10: 0
A11: 0.9305 | B11: 3.9 | D11: 0.6265 | E11: 0.7
A12: 0.921 | B12: 3.8 | D12: 0.636 | E12: 0.8
A13: 0.9115 | B13: 3.7 | D13: 0.6455 | E13: 0.9
A14: 0.902 | B14: 3.6 | D14: 0.655 | E14: 1
A15: 0.8925 | B15: 3.5 | D15: 0.6645 | E15: 1.1
A16: 0.883 | B16: 3.4 | D16: 0.674 | E16: 1.2
A17: 0.8735 | B17: 3.3 | D17: 0.6835 | E17: 1.3
A18: 0.864 | B18: 3.2 | D18: 0.693 | E18: 1.4
A19: 0.8545 | B19: 3.1 | D19: 0.7025 | E19: 1.5
A20: 0.845 | B20: 3 | D20: 0.712 | E20: 1.6
A21: 0.8355 | B21: 2.9 | D21: 0.7215 | E21: 1.7
A22: 0.826 | B22: 2.8 | D22: 0.731 | E22: 1.8
A23: 0.8165 | B23: 2.7 | D23: 0.7405 | E23: 1.9
A24: 0.807 | B24: 2.6 | D24: 0.75 | E24: 2
A25: 0.7975 | B25: 2.5 | D25: 0.7595 | E25: 2.1
A26: 0.788 | B26: 2.4 | D26: 0.769 | E26: 2.2
A27: 0.7785 | B27: 2.3 | D27: 0.7785 | E27: 2.3
A28: 0.769 | B28: 2.2 | D28: 0.788 | E28: 2.4
A29: 0.7595 | B29: 2.1 | D29: 0.7975 | E29: 2.5
A30: 0.75 | B30: 2 | D30: 0.807 | E30: 2.6
A31: 0.7405 | B31: 1.9 | D31: 0.8165 | E31: 2.7
A32: 0.731 | B32: 1.8 | D32: 0.826 | E32: 2.8
A33: 0.7215 | B33: 1.7 | D33: 0.8355 | E33: 2.9
A34: 0.712 | B34: 1.6 | D34: 0.845 | E34: 3
A35: 0.7025 | B35: 1.5 | D35: 0.8545 | E35: 3.1
A36: 0.693 | B36: 1.4 | D36: 0.864 | E36: 3.2
A37: 0.6835 | B37: 1.3 | D37: 0.8735 | E37: 3.3
A38: 0.674 | B38: 1.2 | D38: 0.883 | E38: 3.4
A39: 0.6645 | B39: 1.1 | D39: 0.8925 | E39: 3.5
A40: 0.655 | B40: 1 | D40: 0.902 | E40: 3.6
A41: 0.6455 | B41: 0.9 | D41: 0.9115 | E41: 3.7
A42: 0.636 | B42: 0.8 | D42: 0.921 | E42: 3.8
A43: 0.6265 | B43: 0.7 | D43: 0.9305 | E43: 3.9
A44: 0 | B44: 0 | D44: 0.94 | E44: 4

Sheet HW(4)
A1: In cells A6 and A8 add Data Validation List to add a drop down for the ID.
A2: In cells B6 and B8 create a formula that can lookup the ID and retrieve the Phone and First Name.
A5: ID | B5: Phone
A7: ID | B7: First
A10: ID | B10: Last | C10: First | D10: E-mail | E10: Phone
A11: ="880-"&ROWS(A11:A$69)+9999 -> 880-10058 | B11: Leff | C11: Julianne | D11: =B11&UPPER(LEFT(C11,1))&"@PBY.com" -> LeffJ@PBY.com | E11: 253-559-4034
A12: ="880-"&ROWS(A12:A$69)+9999 -> 880-10057 | B12: Piano | C12: Milagros | D12: =B12&UPPER(LEFT(C12,1))&"@PBY.com" -> PianoM@PBY.com | E12: 253-553-4381
A13: ="880-"&ROWS(A13:A$69)+9999 -> 880-10056 | B13: Coller | C13: Kathrine | D13: CollerK@PBY.com | E13: 206-762-2195
A14: ="880-"&ROWS(A14:A$69)+9999 -> 880-10055 | B14: Stackpole | C14: Lonnie | D14: StackpoleL@PBY.com | E14: 253-764-6538
A15: ="880-"&ROWS(A15:A$69)+9999 -> 880-10054 | B15: Lintz | C15: Kurt | D15: LintzK@PBY.com | E15: 206-736-4510
A16: ="880-"&ROWS(A16:A$69)+9999 -> 880-10053 | B16: Dudgeon | C16: Penelope | D16: DudgeonP@PBY.com | E16: 253-452-9723
A17: ="880-"&ROWS(A17:A$69)+9999 -> 880-10052 | B17: Hughs | C17: Pearlie | D17: HughsP@PBY.com | E17: 253-719-7600

Sheet HW(4an)
A1: In cells A6 and A8 add Data Validation List to add a drop down for the ID.
A2: In cells B6 and B8 create a formula that can lookup the ID and retrieve the Phone and First Name.
A5: ID | B5: Phone
A6: 880-10057 | B6: =VLOOKUP(A6,$A$11:$E$17,5,0) -> 253-553-4381
A7: ID | B7: First
A8: =A6 -> 880-10057 | B8: =VLOOKUP(A8,$A$11:$E$17,2,0) -> Piano
A10: ID | B10: Last | C10: First | D10: E-mail | E10: Phone
A11: ="880-"&ROWS(A11:A$69)+9999 -> 880-10058 | B11: Leff | C11: Julianne | D11: =B11&UPPER(LEFT(C11,1))&"@PBY.com" -> LeffJ@PBY.com | E11: 253-559-4034
A12: ="880-"&ROWS(A12:A$69)+9999 -> 880-10057 | B12: Piano | C12: Milagros | D12: =B12&UPPER(LEFT(C12,1))&"@PBY.com" -> PianoM@PBY.com | E12: 253-553-4381
A13: ="880-"&ROWS(A13:A$69)+9999 -> 880-10056 | B13: Coller | C13: Kathrine | D13: CollerK@PBY.com | E13: 206-762-2195
A14: ="880-"&ROWS(A14:A$69)+9999 -> 880-10055 | B14: Stackpole | C14: Lonnie | D14: StackpoleL@PBY.com | E14: 253-764-6538
A15: ="880-"&ROWS(A15:A$69)+9999 -> 880-10054 | B15: Lintz | C15: Kurt | D15: LintzK@PBY.com | E15: 206-736-4510
A16: ="880-"&ROWS(A16:A$69)+9999 -> 880-10053 | B16: Dudgeon | C16: Penelope | D16: DudgeonP@PBY.com | E16: 253-452-9723
A17: ="880-"&ROWS(A17:A$69)+9999 -> 880-10052 | B17: Hughs | C17: Pearlie | D17: HughsP@PBY.com | E17: 253-719-7600
